{"text_format":"2","workbook":"xlsx","n_sheets":6,"sheets":["Projektdaten","Fahrzeuge","sonst. PKW u. LFZ","Ladeinfrastruktur","spezielle Ladeinfrastruktur","Vorlage für AZA"],"not_rendered":{"charts":0,"images":1,"macros":0,"external_links":0,"defined_names":31,"comments":1,"pivot_tables":1},"unopened":[],"bounds":{"document_bytes":16777216,"sheet_cells":100000,"run_cost":"one","rows_first":2000,"rows_last":500,"rows_between":2000,"halvings":0,"cell_chars":16384,"cell_head_chars":4096},"cells_cut":0,"cells_raw":0,"read":"whole","date_system":"1900"}

{"sheet":"Projektdaten","index":0,"n_rows":50,"n_cols":23,"rows_kept":50,"cut":false,"hidden":true,"merged":[[35,1,43,1],[19,0,19,3],[21,0,49,0],[44,1,49,1],[0,0,0,4],[1,0,1,4],[3,0,17,6],[20,0,20,3],[21,1,25,1],[26,1,34,1]]}
["Tabelle zur Ermittlung der förderfähigen Ausgaben (EfA)"]
["Anlage 2 zum Aufruf zur Antragseinreichung zur Förderung von E-Fahrzeugen und notwendiger Ladeinfrastruktur (02/2021)\n"]
[]
["Mithilfe dieser Tabelle können Sie die Grundlage für Ihre Förderung berechnen. Die Fördersumme berechnet sich aus der Multiplikation der hier berechneten förderfähigen Ausgaben mit der Förderquote. Bitte befüllen Sie diese Anlage, bevor Sie den Antrag in easy-Online ausfüllen. Im Reiter \"Fahrzeuge\" finden Sie als Auswahlfeld alle Fahrzeuge, für die aktuelle Preislisten veröffentlicht wurden. Für diese Fahrzeuge werden Pauschalen ausgezahlt. Nur wenn das Fahrzeug, welches Sie beantragen möchten, nicht darunter ist, können Sie es im Reiter \"Sonderfahrzeuge\" selbst eingeben. Gleiches gilt analog für den Bereich Ladeinfrastruktur.\n\nÜbertragung in easy-Online:\nIm letzten Reiter \"Vorlage für AZA\" finden Sie eine Aufstellung Ihrer Fördergegenstände. Bitte übertragen Sie diese in Ihr easy-Online Formular unter der Rubrik \"Gesamtfinanzierung\". Als \"Preis € / Stück\" werden die förderfähigen Ausgaben aus der EfA-Tabelle eingetragen.\n\nÜbermitteln Sie uns die Tabelle bitte in drei Varianten:\n1. Im pdf-Format als Anhang zum easy-Online Antrag, \n2. als Ausdruck per Post als Anlage zum Antrag sowie\n3. im Excel-Format per E-Mail für die Begleitforschung an: elektromobilitaet@now-gmbh.de"]
{"$rows_empty":15}
["Übersichtsblatt Stammdaten - Bitte tragen Sie Ihre Projektdaten ein"]
["Bitte beantworten Sie diese Fragen wahrheitsgemäß. Diese Angaben haben keinen Einfluss auf die Förderung, \nsie dienen ausschließlich der statistischen Auswertung und Weiterentwicklung des Förderprogramms.",{"$nulls":14},"JAoNEIN","Antragsteller","Raumkategorie","Einsatzkontext","Einsatzgebiet","Standortyp","Beschilderung","E/E"]
["Projekt","Allgemeine Infornationen","Projekt-Kurzbezeichnung (Akronym)",{"$nulls":12},"Ja","gewerblich","Großstadt/Metropolregion > 500.000 EW","Carsharing (fester Stellplatz)","überwiegend städtisch","Firmenparkplatz (Flotte)","Negative Beschilderung mit Zeichen 286,  290.1","nein"]
[null,null,"Projekt-Beschreibung (Titel)",{"$nulls":12},"Nein","kommunal","Großstadt > 100.000 EW","Carsharing (mehrere feste Stellplätze)","überwiegend ländlich","Halböffentlich","Positive Beschilderung mit Zeichen 314, 314.1, 315","PV"]
[null,null,"Ausführende Institution",{"$nulls":14},"Mittelstadt > 50.000 EW","CarSharing (Float)","beides zu gleichen Teilen","Öffentlich am Wohnort","Nein","Wind"]
[null,null,"Raumkategorie",{"$nulls":14},"Kleinstadt > 10.000 EW","Dienstwagen",null,"Öffentlich zentral",null,"PV & Wind"]
[null,null,"Gibt es einen Bezug zu einem aktuell laufenden oder beantragten Forschungs- und Entwicklungsprojekt?",{"$nulls":14},"Stadt/Gemeinde < 10.000 EW","Flotte (Firmen)",null,"Privat"]
[null,"Fahrzeug","Anzahl Fahrzeuge im gesamten Fuhrpark",{"$nulls":14},"Landgemeinde","Flotte (Kommunal)",null,"Firmenparkplatz (private Nutzung)"]
[null,null,"             davon bereits E-Fahrzeuge",{"$nulls":14},"ausserhalb einer Ansiedlung","Flotte (Mietwagen)",null,"Firmen- oder Betriebsgelände "]
[null,null,"Einsatzkontext",{"$nulls":15},"ÖPNV-Flotte"]
[null,null,"Planen sie weitere Umstellungen auf alternative Antriebe innerhalb ihrer Flotte bis 2025 (bezogen auf die Gesamtanzahl in Zeile 27)?",{"$nulls":15},"Privatwagen"]
[null,null,"Falls ja: Anzahl der Umstellung in den kommenden 1-2 Jahren (2021/22)",{"$nulls":15},"Lieferverkehr"]
[null,null,"Falls ja: Anzahl der Umstellung in den darauffolgenden 1-3 Jahren (2023 – 2025)",{"$nulls":15},"Taxi"]
[null,null,"Ersetzen die beantragten E-Fahrzeuge  vorhandene konventionelle Fahrzeuge?",{"$nulls":15},"Leasing"]
[null,null,"Fahren Ihre Fahrzeuge überwiegend im Stadtgebiet?",{"$nulls":15},"Ride-Pooling, Ride-Hailing, Ride-Sharing"]
[null,null,"An wievielen Tagen im Jahr werden die E-Fahrzeuge durchschnittlich im Einsatz sein?",{"$nulls":15},"Kombination"]
[null,"Ladeinfrastruktur","Haben Sie bereits vorhandene Ladeinfrastruktur?"]
[null,null,"Falls ja, wieviele Ladepunkte?"]
[null,null,"Standorttyp der geplanten LIS"]
[null,null,"Wird die LIS öffentlich zugänglich?"]
[null,null,"Planen Sie eine Beschilderung des Parkplatzes?"]
[null,null,"Planen Sie den Parkplatz mit Parkraumsensoren auszustatten?"]
[null,null,"Planen Sie die Errichtung weiterer Ladepunkte?"]
[null,null,"Falls ja: Wie viele Ladepunkte in den kommenden 1-2 Jahren (2021-22)?"]
[null,null,"Falls ja: Wie viele Ladepunkte in den darauffolgenden 1-3 Jahren (2023-25)?"]
[null,"Netzintegration & Erneuerbare Energie","Haben Sie bereits ein Energiemanagement- system zur Steuerung elektrischer Verbraucher im Einsatz?"]
[null,null,"Falls ja: Planen Sie die LIS in das Energiemanagementsystem zu integrieren?"]
[null,null,"Falls nein: Planen Sie die Einführung eines Energiemanagementsystems im Zusammenhang mit der geplanten LIS?"]
[null,null,"Betreiben bzw. nutzen Sie eine PV- bzw. Windkraftanlage zur lokalen, dezentralen Stromerzeugung?"]
[null,null,"Falls ja: Planen Sie die lokal erzeugte erneuerbare Energie zum Laden der E-Fahrzeuge zu nutzen?"]
[null,null,"Planen Sie die Anschaffung bzw. Erweiterung der lokalen erneuerabren Energieerzeugung in Zusammenhang mit der neuen LIS?"]

{"sheet":"Fahrzeuge","index":1,"n_rows":297,"n_cols":35,"rows_kept":297,"cut":false,"hidden":false,"merged":[[5,0,5,1],[6,0,6,1],[7,0,7,1]]}
["Tabelle zur Ermittlung der förderfähigen Ausgaben (EfA)",null,null,null,"ja","nein","Stand: 09.03.2023",null,null,null,"FKZ: 03EMI6",null," "]
["Hinweise:",{"$nulls":5},"ergänzt: 07.02.2025"]
["Die Registerkarte 'Vorlage für AZA' stellt Ihre Eingaben so dar, wie sie in das easyOnline-Formular eingetragen werden müssen.",{"$nulls":5},"korrigiert: 05.09.2024"]
[]
["Bitte füllen Sie zunächst die folgenden Auswahlfelder aus:"]
["Antragsteller ist vorsteuerabzugsberechtigt [Auswahlbox]:"]
["Antragsteller ist zur Ausschreibung verpflichtet [Auswahbox]:",null,"nein"]
["Antragsteller ist selbst antragsberechtigt für \nden BaFa-Umweltbonus [Auswahbox]:"]
["Wählen Sie in der Liste unten die gewünschten Fahrzeuge (Auswahlbox) und die entsprechende Anzahl aus."]
["Für Ladeinfrastruktur wählen Sie bitte die entsprechenden Registerkarte."]
["Speichern Sie alle Arbeitsblätter (3 Seiten) als PDF und fügen Sie sie dem Antrag bei."]
["Grün unterlegte Felder sind Eingabefelder."]
[]
["Pos.","Typ E-Fahrzeug\n[Auswahlbox]","Fahrzeugsegment nach Kraftfahrt-Bundesamt",{"$f":"IF(Fahrzeuge!$C$6=\"nein\",\"Bruttopreis\nE-Fahrzeug\",IF(Fahrzeuge!$C$6=\"ja\",\"Nettopreis\nE-Fahrzeug\",\"Bitte wählen sie aus, ob sie zum Vorsteuerabzug berechtigt sind!\"))","v":"Bitte wählen sie aus, ob sie zum Vorsteuerabzug berechtigt sind!"},"Typ Referenzfahrzeug",{"$f":"IF(Fahrzeuge!$C$6=\"nein\",\"Bruttopreis\nReferenzfahrzeug\",IF(Fahrzeuge!$C$6=\"ja\",\"Nettopreis\nReferenzfahrzeug\",\"Bitte wählen sie aus, ob sie zum Vorsteuerabzug berechtigt sind!\"))","v":"Bitte wählen sie aus, ob sie zum Vorsteuerabzug berechtigt sind!"},{"$f":"IF($C$6=\"nein\",\"Förderfähige Ausgaben pro Fahrzeug (brutto)\",IF($C$6=\"ja\",\"Förderfähige Ausgaben pro Fahrzeug (netto)\",\"Bitte wählen sie aus, ob sie zum Vorsteuerabzug berechtigt sind!\"))","v":"Bitte wählen sie aus, ob sie zum Vorsteuerabzug berechtigt sind!"},{"$f":"IF($C$8=\"ja\",\"Information*: \"&G14&\" nach Anrechnung des Umweltbonus\",\"\")","v":""},"Anzahl zu beschaffender Fahrzeuge des Typs","erwartete durchschnittliche Jahres- Fahrleistung pro Fahrzeug in km","Förderfähige Ausgaben ","Korrekturfeld PtJ",{"$nulls":22},"Fahrzeugklasse Abkürzungen"]
[1,null,{"$f":" IF(B15>0,CONCATENATE(VLOOKUP(B15,N40:W278,9,0),\" (\",VLOOKUP(B15,N40:W278,10,0),\")\"),\"\")","v":""},{"$f":"IF($B15>0,IF(Fahrzeuge!$C$6=\"nein\",VLOOKUP($B15,$N$40:$U$278,3,0),IF(Fahrzeuge!$C$6=\"ja\",VLOOKUP($B15,$N$40:$U$278,2,0),\"Bitte wählen sie aus, ob sie zum Vorsteuerabzug berechtigt sind!\")),\"\")","v":""},{"$f":"IF($B15>0,VLOOKUP($B15,$N$40:$U$278,4,0),\"\")","v":""},{"$f":"IF($B15>0,IF(Fahrzeuge!$C$6=\"nein\",VLOOKUP($B15,$N$40:$U$278,6,0),IF(Fahrzeuge!$C$6=\"ja\",VLOOKUP($B15,$N$40:$U$278,5,0),\"Bitte wählen sie aus, ob sie zum Vorsteuerabzug berechtigt sind!\")),\"\")","v":""},{"$f":"IF(B15>0,IF($C$6=\"nein\",VLOOKUP($B15,$N$40:$U$278,8,0),IF($C$6=\"ja\",VLOOKUP($B15,$N$40:$U$278,7,0),\"Bitte wählen sie aus, ob sie zum Vorsteuerabzug berechtigt sind!\")),\"\")","v":""},{"$f":"IF($H$14>\"\",IF(B15>0,IF($C$6=\"nein\",VLOOKUP($B15,$N$40:$AA$272,14,0),IF($C$6=\"ja\",VLOOKUP($B15,$N$40:$AA$272,13,0),\"\")),\"\"),\"\")","v":""},null,null,{"$f":"IF(B15>0,G15*I15,\"\")","v":""},{"$nulls":23},{"$f":"VLOOKUP($B15,N$39:W$278,10,FALSE)","v":{"$error":"#N/A"}}]
[{"$f":"A15+1","v":2},null,{"$f":" IF(B16>0,CONCATENATE(VLOOKUP(B16,N40:W278,9,0),\" (\",VLOOKUP(B16,N40:W278,10,0),\")\"),\"\")","v":""},{"$f":"IF($B16>0,IF(Fahrzeuge!$C$6=\"nein\",VLOOKUP($B16,$N$40:$U$278,3,0),IF(Fahrzeuge!$C$6=\"ja\",VLOOKUP($B16,$N$40:$U$278,2,0),\"Bitte wählen sie aus, ob sie zum Vorsteuerabzug berechtigt sind!\")),\"\")","v":""},"",{"$f":"IF($B16>0,IF(Fahrzeuge!$C$6=\"nein\",VLOOKUP($B16,$N$40:$U$278,6,0),IF(Fahrzeuge!$C$6=\"ja\",VLOOKUP($B16,$N$40:$U$278,5,0),\"Bitte wählen sie aus, ob sie zum Vorsteuerabzug berechtigt sind!\")),\"\")","v":""},"","",null,null,"",{"$nulls":23},{"$error":"#N/A"}]
[{"$f":"A16+1","v":3},null,{"$f":" IF(B17>0,CONCATENATE(VLOOKUP(B17,N40:W278,9,0),\" (\",VLOOKUP(B17,N40:W278,10,0),\")\"),\"\")","v":""},{"$f":"IF($B17>0,IF(Fahrzeuge!$C$6=\"nein\",VLOOKUP($B17,$N$40:$U$278,3,0),IF(Fahrzeuge!$C$6=\"ja\",VLOOKUP($B17,$N$40:$U$278,2,0),\"Bitte wählen sie aus, ob sie zum Vorsteuerabzug berechtigt sind!\")),\"\")","v":""},"",{"$f":"IF($B17>0,IF(Fahrzeuge!$C$6=\"nein\",VLOOKUP($B17,$N$40:$U$278,6,0),IF(Fahrzeuge!$C$6=\"ja\",VLOOKUP($B17,$N$40:$U$278,5,0),\"Bitte wählen sie aus, ob sie zum Vorsteuerabzug berechtigt sind!\")),\"\")","v":""},"","",null,null,"",{"$nulls":23},{"$error":"#N/A"}]
[{"$f":"A17+1","v":4},null,{"$f":" IF(B18>0,CONCATENATE(VLOOKUP(B18,N40:W278,9,0),\" (\",VLOOKUP(B18,N40:W278,10,0),\")\"),\"\")","v":""},{"$f":"IF($B18>0,IF(Fahrzeuge!$C$6=\"nein\",VLOOKUP($B18,$N$40:$U$278,3,0),IF(Fahrzeuge!$C$6=\"ja\",VLOOKUP($B18,$N$40:$U$278,2,0),\"Bitte wählen sie aus, ob sie zum Vorsteuerabzug berechtigt sind!\")),\"\")","v":""},"",{"$f":"IF($B18>0,IF(Fahrzeuge!$C$6=\"nein\",VLOOKUP($B18,$N$40:$U$278,6,0),IF(Fahrzeuge!$C$6=\"ja\",VLOOKUP($B18,$N$40:$U$278,5,0),\"Bitte wählen sie aus, ob sie zum Vorsteuerabzug berechtigt sind!\")),\"\")","v":""},"","",null,null,"",{"$nulls":23},{"$error":"#N/A"}]
[{"$f":"A18+1","v":5},null,{"$f":" IF(B19>0,CONCATENATE(VLOOKUP(B19,N40:W278,9,0),\" (\",VLOOKUP(B19,N40:W278,10,0),\")\"),\"\")","v":""},{"$f":"IF($B19>0,IF(Fahrzeuge!$C$6=\"nein\",VLOOKUP($B19,$N$40:$U$278,3,0),IF(Fahrzeuge!$C$6=\"ja\",VLOOKUP($B19,$N$40:$U$278,2,0),\"Bitte wählen sie aus, ob sie zum Vorsteuerabzug berechtigt sind!\")),\"\")","v":""},"",{"$f":"IF($B19>0,IF(Fahrzeuge!$C$6=\"nein\",VLOOKUP($B19,$N$40:$U$278,6,0),IF(Fahrzeuge!$C$6=\"ja\",VLOOKUP($B19,$N$40:$U$278,5,0),\"Bitte wählen sie aus, ob sie zum Vorsteuerabzug berechtigt sind!\")),\"\")","v":""},"","",null,null,"",{"$nulls":23},{"$error":"#N/A"}]
[{"$f":"A19+1","v":6},null,{"$f":" IF(B20>0,CONCATENATE(VLOOKUP(B20,N40:W278,9,0),\" (\",VLOOKUP(B20,N40:W278,10,0),\")\"),\"\")","v":""},{"$f":"IF($B20>0,IF(Fahrzeuge!$C$6=\"nein\",VLOOKUP($B20,$N$40:$U$278,3,0),IF(Fahrzeuge!$C$6=\"ja\",VLOOKUP($B20,$N$40:$U$278,2,0),\"Bitte wählen sie aus, ob sie zum Vorsteuerabzug berechtigt sind!\")),\"\")","v":""},"",{"$f":"IF($B20>0,IF(Fahrzeuge!$C$6=\"nein\",VLOOKUP($B20,$N$40:$U$278,6,0),IF(Fahrzeuge!$C$6=\"ja\",VLOOKUP($B20,$N$40:$U$278,5,0),\"Bitte wählen sie aus, ob sie zum Vorsteuerabzug berechtigt sind!\")),\"\")","v":""},"","",null,null,"",{"$nulls":23},{"$error":"#N/A"}]
[7,null,{"$f":" IF(B21>0,CONCATENATE(VLOOKUP(B21,N40:W278,9,0),\" (\",VLOOKUP(B21,N40:W278,10,0),\")\"),\"\")","v":""},{"$f":"IF($B21>0,IF(Fahrzeuge!$C$6=\"nein\",VLOOKUP($B21,$N$40:$U$278,3,0),IF(Fahrzeuge!$C$6=\"ja\",VLOOKUP($B21,$N$40:$U$278,2,0),\"Bitte wählen sie aus, ob sie zum Vorsteuerabzug berechtigt sind!\")),\"\")","v":""},"",{"$f":"IF($B21>0,IF(Fahrzeuge!$C$6=\"nein\",VLOOKUP($B21,$N$40:$U$278,6,0),IF(Fahrzeuge!$C$6=\"ja\",VLOOKUP($B21,$N$40:$U$278,5,0),\"Bitte wählen sie aus, ob sie zum Vorsteuerabzug berechtigt sind!\")),\"\")","v":""},"","",null,null,"",{"$nulls":23},{"$error":"#N/A"}]
[8,null,{"$f":" IF(B22>0,CONCATENATE(VLOOKUP(B22,N40:W278,9,0),\" (\",VLOOKUP(B22,N40:W278,10,0),\")\"),\"\")","v":""},{"$f":"IF($B22>0,IF(Fahrzeuge!$C$6=\"nein\",VLOOKUP($B22,$N$40:$U$278,3,0),IF(Fahrzeuge!$C$6=\"ja\",VLOOKUP($B22,$N$40:$U$278,2,0),\"Bitte wählen sie aus, ob sie zum Vorsteuerabzug berechtigt sind!\")),\"\")","v":""},"",{"$f":"IF($B22>0,IF(Fahrzeuge!$C$6=\"nein\",VLOOKUP($B22,$N$40:$U$278,6,0),IF(Fahrzeuge!$C$6=\"ja\",VLOOKUP($B22,$N$40:$U$278,5,0),\"Bitte wählen sie aus, ob sie zum Vorsteuerabzug berechtigt sind!\")),\"\")","v":""},"","",null,null,"",{"$nulls":23},{"$error":"#N/A"}]
[{"$f":"A22+1","v":9},null,{"$f":" IF(B23>0,CONCATENATE(VLOOKUP(B23,N40:W278,9,0),\" (\",VLOOKUP(B23,N40:W278,10,0),\")\"),\"\")","v":""},{"$f":"IF($B23>0,IF(Fahrzeuge!$C$6=\"nein\",VLOOKUP($B23,$N$40:$U$278,3,0),IF(Fahrzeuge!$C$6=\"ja\",VLOOKUP($B23,$N$40:$U$278,2,0),\"Bitte wählen sie aus, ob sie zum Vorsteuerabzug berechtigt sind!\")),\"\")","v":""},"",{"$f":"IF($B23>0,IF(Fahrzeuge!$C$6=\"nein\",VLOOKUP($B23,$N$40:$U$278,6,0),IF(Fahrzeuge!$C$6=\"ja\",VLOOKUP($B23,$N$40:$U$278,5,0),\"Bitte wählen sie aus, ob sie zum Vorsteuerabzug berechtigt sind!\")),\"\")","v":""},"","",null,null,"",{"$nulls":23},{"$error":"#N/A"}]
[10,null,{"$f":" IF(B24>0,CONCATENATE(VLOOKUP(B24,N40:W278,9,0),\" (\",VLOOKUP(B24,N40:W278,10,0),\")\"),\"\")","v":""},{"$f":"IF($B24>0,IF(Fahrzeuge!$C$6=\"nein\",VLOOKUP($B24,$N$40:$U$278,3,0),IF(Fahrzeuge!$C$6=\"ja\",VLOOKUP($B24,$N$40:$U$278,2,0),\"Bitte wählen sie aus, ob sie zum Vorsteuerabzug berechtigt sind!\")),\"\")","v":""},"",{"$f":"IF($B24>0,IF(Fahrzeuge!$C$6=\"nein\",VLOOKUP($B24,$N$40:$U$278,6,0),IF(Fahrzeuge!$C$6=\"ja\",VLOOKUP($B24,$N$40:$U$278,5,0),\"Bitte wählen sie aus, ob sie zum Vorsteuerabzug berechtigt sind!\")),\"\")","v":""},"","",null,null,"",{"$nulls":23},{"$error":"#N/A"}]
[11,null,{"$f":" IF(B25>0,CONCATENATE(VLOOKUP(B25,N40:W278,9,0),\" (\",VLOOKUP(B25,N40:W278,10,0),\")\"),\"\")","v":""},{"$f":"IF($B25>0,IF(Fahrzeuge!$C$6=\"nein\",VLOOKUP($B25,$N$40:$U$278,3,0),IF(Fahrzeuge!$C$6=\"ja\",VLOOKUP($B25,$N$40:$U$278,2,0),\"Bitte wählen sie aus, ob sie zum Vorsteuerabzug berechtigt sind!\")),\"\")","v":""},"",{"$f":"IF($B25>0,IF(Fahrzeuge!$C$6=\"nein\",VLOOKUP($B25,$N$40:$U$278,6,0),IF(Fahrzeuge!$C$6=\"ja\",VLOOKUP($B25,$N$40:$U$278,5,0),\"Bitte wählen sie aus, ob sie zum Vorsteuerabzug berechtigt sind!\")),\"\")","v":""},"","",null,null,"",{"$nulls":23},{"$error":"#N/A"}]
[12,null,{"$f":" IF(B26>0,CONCATENATE(VLOOKUP(B26,N40:W278,9,0),\" (\",VLOOKUP(B26,N40:W278,10,0),\")\"),\"\")","v":""},{"$f":"IF($B26>0,IF(Fahrzeuge!$C$6=\"nein\",VLOOKUP($B26,$N$40:$U$278,3,0),IF(Fahrzeuge!$C$6=\"ja\",VLOOKUP($B26,$N$40:$U$278,2,0),\"Bitte wählen sie aus, ob sie zum Vorsteuerabzug berechtigt sind!\")),\"\")","v":""},"",{"$f":"IF($B26>0,IF(Fahrzeuge!$C$6=\"nein\",VLOOKUP($B26,$N$40:$U$278,6,0),IF(Fahrzeuge!$C$6=\"ja\",VLOOKUP($B26,$N$40:$U$278,5,0),\"Bitte wählen sie aus, ob sie zum Vorsteuerabzug berechtigt sind!\")),\"\")","v":""},"","",null,null,"",{"$nulls":23},{"$error":"#N/A"}]
[{"$f":"A26+1","v":13},null,{"$f":" IF(B27>0,CONCATENATE(VLOOKUP(B27,N40:W278,9,0),\" (\",VLOOKUP(B27,N40:W278,10,0),\")\"),\"\")","v":""},{"$f":"IF($B27>0,IF(Fahrzeuge!$C$6=\"nein\",VLOOKUP($B27,$N$40:$U$278,3,0),IF(Fahrzeuge!$C$6=\"ja\",VLOOKUP($B27,$N$40:$U$278,2,0),\"Bitte wählen sie aus, ob sie zum Vorsteuerabzug berechtigt sind!\")),\"\")","v":""},"",{"$f":"IF($B27>0,IF(Fahrzeuge!$C$6=\"nein\",VLOOKUP($B27,$N$40:$U$278,6,0),IF(Fahrzeuge!$C$6=\"ja\",VLOOKUP($B27,$N$40:$U$278,5,0),\"Bitte wählen sie aus, ob sie zum Vorsteuerabzug berechtigt sind!\")),\"\")","v":""},"","",null,null,"",{"$nulls":23},{"$error":"#N/A"}]
[14,null,{"$f":" IF(B28>0,CONCATENATE(VLOOKUP(B28,N40:W278,9,0),\" (\",VLOOKUP(B28,N40:W278,10,0),\")\"),\"\")","v":""},{"$f":"IF($B28>0,IF(Fahrzeuge!$C$6=\"nein\",VLOOKUP($B28,$N$40:$U$278,3,0),IF(Fahrzeuge!$C$6=\"ja\",VLOOKUP($B28,$N$40:$U$278,2,0),\"Bitte wählen sie aus, ob sie zum Vorsteuerabzug berechtigt sind!\")),\"\")","v":""},"",{"$f":"IF($B28>0,IF(Fahrzeuge!$C$6=\"nein\",VLOOKUP($B28,$N$40:$U$278,6,0),IF(Fahrzeuge!$C$6=\"ja\",VLOOKUP($B28,$N$40:$U$278,5,0),\"Bitte wählen sie aus, ob sie zum Vorsteuerabzug berechtigt sind!\")),\"\")","v":""},"","",null,null,"",{"$nulls":23},{"$error":"#N/A"}]
[15,null,{"$f":" IF(B29>0,CONCATENATE(VLOOKUP(B29,N40:W278,9,0),\" (\",VLOOKUP(B29,N40:W278,10,0),\")\"),\"\")","v":""},{"$f":"IF($B29>0,IF(Fahrzeuge!$C$6=\"nein\",VLOOKUP($B29,$N$40:$U$278,3,0),IF(Fahrzeuge!$C$6=\"ja\",VLOOKUP($B29,$N$40:$U$278,2,0),\"Bitte wählen sie aus, ob sie zum Vorsteuerabzug berechtigt sind!\")),\"\")","v":""},"",{"$f":"IF($B29>0,IF(Fahrzeuge!$C$6=\"nein\",VLOOKUP($B29,$N$40:$U$278,6,0),IF(Fahrzeuge!$C$6=\"ja\",VLOOKUP($B29,$N$40:$U$278,5,0),\"Bitte wählen sie aus, ob sie zum Vorsteuerabzug berechtigt sind!\")),\"\")","v":""},"","",null,null,"",{"$nulls":23},{"$error":"#N/A"}]
[16,null,{"$f":" IF(B30>0,CONCATENATE(VLOOKUP(B30,N40:W278,9,0),\" (\",VLOOKUP(B30,N40:W278,10,0),\")\"),\"\")","v":""},{"$f":"IF($B30>0,IF(Fahrzeuge!$C$6=\"nein\",VLOOKUP($B30,$N$40:$U$278,3,0),IF(Fahrzeuge!$C$6=\"ja\",VLOOKUP($B30,$N$40:$U$278,2,0),\"Bitte wählen sie aus, ob sie zum Vorsteuerabzug berechtigt sind!\")),\"\")","v":""},"",{"$f":"IF($B30>0,IF(Fahrzeuge!$C$6=\"nein\",VLOOKUP($B30,$N$40:$U$278,6,0),IF(Fahrzeuge!$C$6=\"ja\",VLOOKUP($B30,$N$40:$U$278,5,0),\"Bitte wählen sie aus, ob sie zum Vorsteuerabzug berechtigt sind!\")),\"\")","v":""},"","",null,null,"",{"$nulls":23},{"$error":"#N/A"}]
[{"$f":"A30+1","v":17},null,{"$f":" IF(B31>0,CONCATENATE(VLOOKUP(B31,N40:W278,9,0),\" (\",VLOOKUP(B31,N40:W278,10,0),\")\"),\"\")","v":""},{"$f":"IF($B31>0,IF(Fahrzeuge!$C$6=\"nein\",VLOOKUP($B31,$N$40:$U$278,3,0),IF(Fahrzeuge!$C$6=\"ja\",VLOOKUP($B31,$N$40:$U$278,2,0),\"Bitte wählen sie aus, ob sie zum Vorsteuerabzug berechtigt sind!\")),\"\")","v":""},"",{"$f":"IF($B31>0,IF(Fahrzeuge!$C$6=\"nein\",VLOOKUP($B31,$N$40:$U$278,6,0),IF(Fahrzeuge!$C$6=\"ja\",VLOOKUP($B31,$N$40:$U$278,5,0),\"Bitte wählen sie aus, ob sie zum Vorsteuerabzug berechtigt sind!\")),\"\")","v":""},"","",null,null,"",{"$nulls":23},{"$error":"#N/A"}]
[{"$f":"A31+1","v":18},null,{"$f":" IF(B32>0,CONCATENATE(VLOOKUP(B32,N40:W278,9,0),\" (\",VLOOKUP(B32,N40:W278,10,0),\")\"),\"\")","v":""},{"$f":"IF($B32>0,IF(Fahrzeuge!$C$6=\"nein\",VLOOKUP($B32,$N$40:$U$278,3,0),IF(Fahrzeuge!$C$6=\"ja\",VLOOKUP($B32,$N$40:$U$278,2,0),\"Bitte wählen sie aus, ob sie zum Vorsteuerabzug berechtigt sind!\")),\"\")","v":""},"",{"$f":"IF($B32>0,IF(Fahrzeuge!$C$6=\"nein\",VLOOKUP($B32,$N$40:$U$278,6,0),IF(Fahrzeuge!$C$6=\"ja\",VLOOKUP($B32,$N$40:$U$278,5,0),\"Bitte wählen sie aus, ob sie zum Vorsteuerabzug berechtigt sind!\")),\"\")","v":""},"","",null,null,"",null,null,"Aktuelle Preise",{"$nulls":20},{"$error":"#N/A"}]
[{"$f":"A32+1","v":19},null,{"$f":" IF(B33>0,CONCATENATE(VLOOKUP(B33,N40:W278,9,0),\" (\",VLOOKUP(B33,N40:W278,10,0),\")\"),\"\")","v":""},{"$f":"IF($B33>0,IF(Fahrzeuge!$C$6=\"nein\",VLOOKUP($B33,$N$40:$U$278,3,0),IF(Fahrzeuge!$C$6=\"ja\",VLOOKUP($B33,$N$40:$U$278,2,0),\"Bitte wählen sie aus, ob sie zum Vorsteuerabzug berechtigt sind!\")),\"\")","v":""},"",{"$f":"IF($B33>0,IF(Fahrzeuge!$C$6=\"nein\",VLOOKUP($B33,$N$40:$U$278,6,0),IF(Fahrzeuge!$C$6=\"ja\",VLOOKUP($B33,$N$40:$U$278,5,0),\"Bitte wählen sie aus, ob sie zum Vorsteuerabzug berechtigt sind!\")),\"\")","v":""},"","",null,null,"",null,null,"Alte Preise",{"$nulls":20},{"$error":"#N/A"}]
[{"$f":"A33+1","v":20},null,{"$f":" IF(B34>0,CONCATENATE(VLOOKUP(B34,N40:W278,9,0),\" (\",VLOOKUP(B34,N40:W278,10,0),\")\"),\"\")","v":""},{"$f":"IF($B34>0,IF(Fahrzeuge!$C$6=\"nein\",VLOOKUP($B34,$N$40:$U$278,3,0),IF(Fahrzeuge!$C$6=\"ja\",VLOOKUP($B34,$N$40:$U$278,2,0),\"Bitte wählen sie aus, ob sie zum Vorsteuerabzug berechtigt sind!\")),\"\")","v":""},"",{"$f":"IF($B34>0,IF(Fahrzeuge!$C$6=\"nein\",VLOOKUP($B34,$N$40:$U$278,6,0),IF(Fahrzeuge!$C$6=\"ja\",VLOOKUP($B34,$N$40:$U$278,5,0),\"Bitte wählen sie aus, ob sie zum Vorsteuerabzug berechtigt sind!\")),\"\")","v":""},"","",null,null,"",null,null,"Neue Fragen ",{"$nulls":20},{"$error":"#N/A"}]
["Summe",null,null,null,{"$f":"IF($B35>0,VLOOKUP($B35,$N$59:$U$199,5,0),\"\")","v":""},null,{"$f":"IF(B35>0,IF($C$6=\"nein\",VLOOKUP($B35,$N$59:$U$199,9,0),IF($C$6=\"ja\",VLOOKUP($B35,$N$59:$U$199,8,0),\"Bitte wählen sie aus, ob sie zum Vorsteuerabzug berechtigt sind!\")),\"\")","v":""},null,{"$f":"IF(COUNTA(B15:B34)=COUNTA(I15:I34),\"\",\"Angabe zu Anzahl fehlt\")","v":""},{"$f":"IFERROR(\"Ø: \"&TEXT(SUMPRODUCT(I15:I34,J15:J34)/SUM(I15:I34),\"#.##0\"),\"\")","v":""},{"$f":"IF(SUM(K15:K34)>0,SUM(K15:K34),\"\")","v":""}]
[]
[null,{"$f":" IF(C7>0, IF(C7=\"nein\",\"\",\"* Bei Beantragung von Fahrzeugsegmenten erfolgt die Abrechnung nach den Pauschalwerten des tatsächlich beschafften Fahrzeugs!\"),\"\")","v":""}]
[null,{"$f":"IF(H14>\"\",\"* Die Informationsspalte zum Umweltbonus zeigt, auf welche förderfähigen Mehrkosten sich unsere Förderung bezieht, sofern sie selbst den Umweltbonus beantragen. (siehe FAQ Frage 24)\",\"\")","v":""}]
[null,null," ",{"$nulls":10},"E-Fahrzeug","E-Listenpreis netto","E-Listenpreis brutto","Vergleichsfahrzeug","Listenpreis netto","Listenpreis brutto","förderfähig netto","förderfähig brutto","Info Segment","Fahrzeugklassen Abkürzung","ergänzt am:","BAFA","förderfähig netto abzgl. BaFa","förderfähig brutto abzgl. BaFa","Kommentar",null,null,null,"Ausschreibung?",{"$f":"IF(Fahrzeuge!$C$7>0,IF(Fahrzeuge!$C$7=\"ja\",\"ja\",\"nein\"),\"\")","v":"nein"}]
[{"$nulls":12},"Änderung Name zu 500e am 17.04.24","Abarth 500e",{"$f":"ROUND(P40/1.19,2)","v":36134.449999999997},43000,"Abarth 595",{"$f":"ROUND(S40/1.19,2)","v":23521.01},27990,{"$f":"IF(O40-R40>=0,ROUND(O40-R40,0),0)","v":12613},15010,"Kleinwagen","PKW"]
[{"$nulls":13},"AIWAYS U5 (alle Versionen) ",33250,39567.5,"VW Tiguan Life 1.5 TSI OPF  6 Gang 110 kW",30159.66,35890,3090,3678,"Geländewagen / SUV","PKW"]
[{"$nulls":13},"Aixam eCity (alle Versionen) ",14445.38,17190,"Aixam City Pack",10075.629999999999,11990,4370,5200,"Leichtfahrzeug","LFZ"]
[{"$nulls":13},"Alfa Romeo Junior Elettrica (alle Versionen)",33193.279999999999,39500,"Alfa Romeo Junior Ibrida",24789.919999999998,29500,8403,10000,"Geländewagen / SUV","PKW","2024-04-17"]
[{"$nulls":12},"L2e","ARI 345",6995,{"$f":"6995*1.19","v":8324.0499999999993},"Kymco Maxxer S300 T ONROAD LOF (Quad)",4957.1400000000003,5899,2038,2425,"Leichtfahrzeug","LFZ","2023-03-17"]
[{"$nulls":12},"L6e (45 km/h)","ARI 252 / 452",9999,{"$f":"9999*1.19","v":11898.81},"Aixam Minauto Access",8394.9599999999991,9990,1604,1909,"Leichtfahrzeug","LFZ","2023-03-17"]
[{"$nulls":12},"L7e","ARI 458 (150 km)",17690,{"$f":"(14790+2900)*1.19","v":21051.1},"Aixam D-Truck Pritsche",13100.84,15590,4589,5461,"Leichtfahrzeug","LFZ","2023-03-17"]
[{"$nulls":12},"L7e","ARI 458 (200 km)",18690,{"$f":"(14790+3900)*1.19","v":22241.1},"Aixam D-Truck Pritsche",13100.84,15590,5589,6651,"Leichtfahrzeug","LFZ","2023-03-17"]
[{"$nulls":12},"L7e","ARI 802 (150 km)",13899,{"$f":"(10999+2900)*1.19","v":16539.809999999998},"Aixam City Pack",10075.629999999999,11990,3823,4550,"Leichtfahrzeug","LFZ","2023-03-17"]
[{"$nulls":12},"L7e","ARI 802 (200 km)",14899,{"$f":"(10999+3900)*1.19","v":17729.809999999998},"Aixam City Pack",10075.629999999999,11990,4823,5740,"Leichtfahrzeug","LFZ","2023-03-17"]
[{"$nulls":12},"L7e","ARI 902 (9,5 kWh)",13990,{"$f":"13990*1.19","v":16648.099999999999},"Aixam City Pack",10075.629999999999,11990,3914,4658,"Leichtfahrzeug","LFZ","2023-03-17"]
[{"$nulls":12},"L7e","ARI 902 (10,35 kWh)",14980,{"$f":"(13990+990)*1.19","v":17826.2},"Aixam City Pack",10075.629999999999,11990,4904,5836,"Leichtfahrzeug","LFZ","2023-03-17"]
[{"$nulls":12},"L7e","ARI 902 (18 kWh)",15960,{"$f":"(13990+1970)*1.19","v":18992.399999999998},"Aixam City Pack",10075.629999999999,11990,5884,7002,"Leichtfahrzeug","LFZ","2023-03-17"]
[{"$nulls":13},"Audi Q4 e-tron 55 kWh MJ 2025 (alle Versionen)",38319.33,45600,"Audi Q3 35 TFSI 6-Gang 110 kW",31638.66,37650,6681,7950,"Geländewagen / SUV","PKW","2024-07-19"]
[{"$nulls":12},"Änderung 25.01.2024","Audi Q4 e-tron 82 kWh (alle Versionen)",43613.45,51900,"Audi Q3 35 TFSI 6-Gang 110 kW",31638.66,37650,11975,14250,"Geländewagen / SUV","PKW"]
[{"$nulls":13},"Audi Q6 e-tron 83 kWh (alle Versionen)",{"$f":"ROUND(P55/1.19,2)","v":53361.34},63500,"Audi Q5 advanced 45 TFSI quattro S tronic",{"$f":"ROUND(S55/1.19,2)","v":50588.24},60200,{"$f":"IF(O55-R55>=0,ROUND(O55-R55,0),0)","v":2773},{"$f":"IF(P55-S55>=0,ROUND(P55-S55,0),0)","v":3300},"Geländewagen / SUV","PKW","2024-08-22"]
[{"$nulls":13},"Audi Q6 e-tron 100 kWh (alle Versionen)",62773.11,74700,"Audi Q5 advanced 45 TFSI quattro S tronic",50588.24,60200,12185,14500,"Geländewagen / SUV","PKW","2024-04-03"]
[{"$nulls":12},"Änderung 25.01.2024","Audi Q8 e-tron 50 quattro 89 kWh (alle Versionen)",62521.01,74400,"Audi A6 allroad quattro 45 TDI 180 kW",55966.39,66600,6555,7800,"Geländewagen / SUV","PKW"]
[{"$nulls":13},"Audi Q8 e-tron 55 quattro (alle Versionen)","nicht förderfähig gemäß Aufruf","nicht förderfähig gemäß Aufruf",null,0,0,null,null,"Geländewagen / SUV","PKW"]
[{"$nulls":13},"Audi e-tron GT (alle Versionen)","nicht förderfähig gemäß FRL","nicht förderfähig gemäß Aufruf",null,0,0,null,null,"Oberklasse","PKW"]
[{"$nulls":13},"BMW i4 eDrive35 67 kWh (alle Versionen)",{"$f":"ROUND(P60/1.19,2)","v":47478.99},56500,"BMW 420i Gran Coupé ",43193.279999999999,51400,{"$f":"IF(O60-R60>=0,ROUND(O60-R60,0),0)","v":4286},5100,"Mittelklasse","PKW"]
[{"$nulls":13},"BMW i4 eDrive40 80,7 kWh (alle Versionen)",{"$f":"ROUND(P61/1.19,2)","v":49747.9},59200,"BMW 420i Gran Coupé ",{"$f":"ROUND(S61/1.19,2)","v":43193.279999999999},51400,{"$f":"IF(O61-R61>=0,ROUND(O61-R61,0),0)","v":6555},{"$f":"IF(P61-S61>=0,ROUND(P61-S61,0),0)","v":7800},"Mittelklasse","PKW","2025-02-07"]
[{"$nulls":13},"BMW i5 (alle Versionen)",{"$f":"ROUND(P62/1.19,2)","v":58991.6},70200,"BMW 520d",50210.080000000002,59750,8782,10450,"Mittelklasse","PKW","2024-02-23"]
[{"$nulls":13},"BMW i7 (alle Versionen)","nicht förderfähig gemäß FRL","nicht förderfähig gemäß Aufruf",null,{"$f":"ROUND(S63/1.19,2)","v":0},0,null,null,"Oberklasse","PKW"]
[{"$nulls":13},"BMW iX1 (alle Versionen)",{"$f":"ROUND(P64/1.19,2)","v":46218.49},55000,"BMW X1 xDrive20d",40714.29,48450,5504,6550,"Geländewagen / SUV","PKW"]
[{"$nulls":13},"BMW iX2 (alle Versionen)",{"$f":"ROUND(P65/1.19,2)","v":47478.99},56500,"BMW X2 xDrive20d",41974.79,49950,5504,6550,"Geländewagen / SUV","PKW","2024-02-14"]
[{"$nulls":13},"BMW iX3 (alle Versionen)",{"$f":"ROUND(P66/1.19,2)","v":56554.62},67300,"BMW X3 xDrive20d",49243.7,58600,7311,8700,"Geländewagen / SUV","PKW"]
[{"$nulls":13},"BMW iX (alle Versionen)",{"$f":"ROUND(P67/1.19,2)","v":64957.98},77300,"BMW X5 xDrive30d",72521.009999999995,86300,0,0,"Geländewagen / SUV","PKW"]
[{"$nulls":12},"zuordnung Fzg-kl. Am 21.02.2024 geändert","BYD Atto 3 (alle Versionen)",{"$f":"ROUND(P68/1.19,2)","v":37500},44625,"Mazda CX 5",25201.68,{"$f":"ROUND(25201.68*1.19,2)","v":29990},12298,14635,"Geländewagen / SUV","PKW","2023-03-16"]
[{"$nulls":13},"BYD Dolphin 60,4 kWh (alle Versionen)",27722.69,32990,"Peugeot 308 PureTech 130",26260.5,31250,1462,1740,"Kompaktklasse","PKW","2024-02-15"]
[{"$nulls":13},"BYD Han (alle Versionen)",59500,{"$f":"ROUND(59500*1.19,2)","v":70805},"Mercedes Benz E 300 d 4MATIC",51565,61362.35,7935,9443,"Mittelklasse","PKW","2023-03-16"]
[{"$nulls":13},"BYD Seal (alle Versionen)",37806.720000000001,44990,"Opel Insignia 90 kW",32142.86,38250,5664,6740,"Mittelklasse","PKW"]
[{"$nulls":13},"BYD Seal U 71,8 kWh (alle Versionen)",35285.71,41990,"BYD Seal U DM-i",32689.08,38900,2597,3090,"Geländewagen / SUV","PKW","2024-07-16"]
[{"$nulls":13},"BYD Seal U 87 kWh (alle Versionen)",37806.720000000001,44990,"BYD Seal U DM-i",32689.08,38900,5118,6090,"Geländewagen / SUV","PKW","2024-07-16"]
[{"$nulls":13},"BYD Tang (alle Versionen)",60000,{"$f":"ROUND(60000*1.19,2)","v":71400},"Toyota Land Cruiser (7-Sitzer)",47705.88,56770,12294,14630,"Geländewagen / SUV","PKW","2023-03-16"]
[{"$nulls":13},"Cenntro Metro (13 kWh), L7e",21176.47,25200,"Aixam D-Truck Pritsche",13100.84,15590,8076,9610,"Leichtfahrzeug","LFZ","2023-04-11"]
[{"$nulls":13},"CITROËN AMI (alle Versionen)",6714.29,7990,"Kymco Maxxer S300 T ONROAD LOF (Quad)",4957.1400000000003,5899,1757,2091,"Leichtfahrzeug","LFZ","2024-07-15"]
[{"$nulls":13},"CITROËN ë-Berlingo (nur M1-Versionen)",31756.3,37790,"Citroën Berlingo MPV",21184.87,25210,{"$f":"IF(O77-R77>=0,ROUND(O77-R77,0),0)","v":10571},12580,"Großraum-Van","PKW"]
[{"$nulls":13},"CITROËN ë-C3 (alle Versionen)",19579.830000000002,23300,"CITROËN C3 PureTech 83",10831.93,12890,8748,10410,"Kleinwagen","PKW","2024-02-14"]
[{"$nulls":13},"CITROËN ë-C4 (alle Versionen)",31546.22,37540,"CITROËN C4 PureTech 130 6-Gang",22403.360000000001,26660,9143,10880,"Kompaktklasse","PKW"]
[{"$nulls":13},"CITROËN ë-SpaceTourer 50kWh (nur M1-Versionen)",45075.63,53640,"Toyota Proace Verso 106 kW, L1-Version ",44302.52,52720,773,920,"Großraum-Van","PKW"]
[{"$nulls":13},"CITROËN ë-SpaceTourer 75kWh (nur M1-Versionen)",50117.65,59640,"Toyota Proace Verso 106 kW, L1-Version ",44302.52,52720,5815,6920,"Großraum-Van","PKW"]
[{"$nulls":13},"CITROËN ë-Jumpy Kombi 50kWh  (nur M1-Versionen)",42176.47,50190,"Citroen Jumpy Kombi (alle M-Versionen)",33605.040000000001,39990,8571,10200,"Großraum-Van","PKW"]
[{"$nulls":13},"CITROËN ë-Jumpy Kombi 75kWh  (nur M1-Versionen)",47218.49,56190,"Citroen Jumpy Kombi (alle M-Versionen)",33605.040000000001,39990,13613,16200,"Großraum-Van","PKW"]
[{"$nulls":13},"CUPRA born 58kWh (alle Versionen)",32579.83,38770,"Seat Leon FR 110 kW ",25075.63,29840,7504,8930,"Kompaktklasse","PKW"]
[{"$nulls":13},"CUPRA born 77kWh (alle Versionen)",38529.410000000003,45850,"Seat Leon FR 110 kW ",25075.63,29840,13454,16010,"Kompaktklasse","PKW"]
[{"$nulls":13},"CUPRA TAVASCAN 77 kWh (alle Versionen)",47235.29,56210,"CUPRA Ateca 140 kW",39949.58,47540,7286,8670,"Geländewagen / SUV","PKW","2024-07-15"]
[{"$nulls":13},"Dacia Spring (alle Versionen)",19117.650000000001,22750,"Dacia Sandero Stepway",12100.84,14400,7017,8350,"Mini","PKW"]
[{"$nulls":13},"DS 3 E-TENSE (alle Versionen)",38268.910000000003,45540,"DS 3 BASTILLE",29445.38,35040,8824,10500,"Kleinwagen","PKW"]
[{"$nulls":13},"DS 8 Pallas (alle Versionen) 73,7 kWh",48487.39,57700,"DS 7 Blue Hdi Pallas 96 kW",40134.449999999997,47760,8353,9940,"Mittelklasse","PKW","2025-02-07"]
[{"$nulls":13},"DS 8 Pallas (alle Versionen) 97,2 kWh",53109.24,63200,"DS 7 Blue Hdi Pallas 96 kW",{"$f":"ROUND(S90/1.19,2)","v":40134.449999999997},47760,{"$f":"IF(O90-R90>=0,ROUND(O90-R90,0),0)","v":12975},{"$f":"IF(P90-S90>=0,ROUND(P90-S90,0),0)","v":15440},"Mittelklasse","PKW","2025-02-07"]
[{"$nulls":13},"Elaris BEO (alle Versionen)",36739.5,{"$f":"39220+4500","v":43720},"VW Tiguan Life 1.5 TSI OPF  6 Gang 110 kW",31121.85,37035,5618,6685,"Geländewagen / SUV","PKW"]
[{"$nulls":13},"Elaris DYO (alle Versionen)",17924.37,{"$f":"16830+4500","v":21330},"Ligier JS60 CHIC",14284.87,16999,3640,4331,"Mini","PKW"]
[{"$nulls":13},"Elaris PIO (alle Versionen)",15403.36,{"$f":"13830+4500","v":18330},"Ligier JS50 Club",11344.54,13500,4059,4830,"Mini","PKW"]
[{"$nulls":12},"zuordnung Fzg-kl. Am 21.02.2024 geändert","Fiat 500 elektro 23,8 kWh (alle Versionen)",26042.02,30990,"Fiat 500 Hybrid",14277.31,16990,11765,14000,"Mini","PKW"]
[{"$nulls":12},"zuordnung Fzg-kl. Am 21.02.2024 geändert","Fiat 500 elektro 42,0 kWh (alle Versionen)",29403.360000000001,34990,"Fiat 500 Hybrid",14277.31,16990,15126,18000,"Mini","PKW"]
[{"$nulls":13},"Fiat 600 e 54 kWh (alle Versionen)",30663.87,36490,"Fiat 600 Hybrid",21000,24990,9664,11500,"Kompaktklasse","PKW","2024-02-14"]
[{"$nulls":13},"Fiat E-Doblò (nur M1 Versionen)",31550,37544.5,"Fiat Doblò",21100,25109,10450,12436,"Großraum-Van","PKW"]
[{"$nulls":13},"Fiat E-Ulysse 50 kWh (nur M1-Versionen)",52932.77,62990,"Toyota Proace Verso 106 kW, L1-Version ",44302.52,52720,8630,10270,"Großraum-Van","PKW"]
[{"$nulls":13},"Fiat E-Ulysse 75 kWh (nur M1-Versionen)",57974.79,68990,"Toyota Proace Verso 106 kW, L1-Version ",44302.52,52720,13672,16270,"Großraum-Van","PKW"]
[{"$nulls":13},"Fiat Grande Panda Elektro (alle Versionen)",21000,24990,"Fiat Grande Panda Hybrid",15957.98,18990,5042,6000,"Kleinwagen","PKW","2025-02-03"]
[{"$nulls":13},"Fiat Topolino (alle Versionen)",8310.92,9890,"Kymco Maxxer S300 T ONROAD LOF (Quad)",4957.1400000000003,5899,3354,3991,"Leichtfahrzeug","LFZ","2024-07-15"]
[{"$nulls":13},"Fisker Ocean 75 kWh (alle Versionen)",34923.949999999997,{"$f":"38882+(ROUND(2250*1.19,2))","v":41559.5},"VW Tiguan Allspace Life 1.5 TSI",34176.47,40670,747,890,"Geländewagen / SUV","PKW"]
[{"$nulls":13},"Fisker Ocean 100 kWh (alle Versionen)",47899.58,{"$f":"54323+(ROUND(2250*1.19,2))","v":57000.5},"VW Tiguan Allspace Life 2.0 TSI 4 MOTION",39953.78,47545,7946,9456,"Geländewagen / SUV","PKW"]
[{"$nulls":13},"Ford Capri (alle Versionen)",42782.35,50911,"Ford Kuga 110 kW, 6-Gang",33571.43,39950,9211,10961,"Geländewagen / SUV","PKW","2024-07-15"]
[{"$nulls":13},"Ford Explorer  EV Standard Range (alle Versionen)",35714.29,42500,"Ford Kuga 110 kW, 6-Gang",{"$f":"ROUND(S105/1.19,2)","v":33571.43},39950,{"$f":"IF(O105-R105>=0,ROUND(O105-R105,0),0)","v":2143},{"$f":"IF(P105-S105>=0,ROUND(P105-S105,0),0)","v":2550},"Geländewagen / SUV","PKW","2024-08-16"]
[{"$nulls":13},"Ford Explorer  EV Extended Range (alle Versionen)",41596.639999999999,49500,"Ford Kuga 110 kW, 6-Gang",33571.43,39950,8025,9550,"Geländewagen / SUV","PKW","2024-03-26"]
[{"$nulls":12},"laut KBA Sportwagen","Ford Mustang Mach-E Standard Range 75,7 kWh (alle Versionen)",52857.14,62900,"Ford Mustang GT",46638.66,55500,6218,7400,"Geländewagen / SUV","PKW"]
[{"$nulls":12},"laut KBA Sportwagen","Ford Mustang Mach-E Extended Range 98,7 kWh (alle Versionen)",59831.93,71200,"Ford Mustang GT",46638.66,55500,13193,15700,"Geländewagen / SUV","PKW"]
[{"$nulls":13},"Ford Puma Gen-E",31008.400000000001,36900,"Ford Puma ",24285.71,28900,6723,8000,"Kleinwagen","PKW","2025-02-07"]
[{"$nulls":12},"Bezeichnung geändert","Ford Tourneo Custom Bus 82,5 kWh (alle M1-Versionen)",56150,66818.5,"Ford Tourneo Custom Bus",42850,50991.5,13300,15827,"Großraum-Van","PKW","2024-02-14"]
[{"$nulls":13},"Ford Transit Custom Kombi PKW 82,5 kWh (nur M1-Versionen)",49800,59262,"Ford Transit Custom Kombi PKW",{"$f":"ROUND(S111/1.19,2)","v":41050},48849.5,8750,10413,"Großraum-Van","PKW","2024-08-21"]
[{"$nulls":13},"Genesis GV60 (alle Versionen)",53109.24,63200,"Hyundai Tucson Allrad, 169 kW (Prime)",{"$f":"ROUND(S112/1.19,2)","v":40361.339999999997},48030,12748,15170,"Geländewagen / SUV","PKW"]
[{"$nulls":13},"Genesis ELECTRIFIED GV70 (alle Versionen)",56554.62,67300,"Genesis GV70 Sport",43739.5,52050,12815,15250,"Geländewagen / SUV","PKW"]
[{"$nulls":13},"Genesis ELECTRIFIED G80 (alle Versionen)",60672.27,72200,"Genesis G80 Luxury",49899.16,59380,10773,12820,"Mittelklasse","PKW"]
[{"$nulls":13},"Goupil G2 5,2 kWh L7e (alle Versionen)",22456.04,{"$f":"ROUND(22456.04*1.19,2)","v":26722.69},"Aixam D-Truck Pritsche",13100.84,15590,9355,11133,"Leichtfahrzeug","LFZ","2023-04-11"]
[{"$nulls":13},"Goupil G2 8,6 kWh L7e (alle Versionen)",24933.38,{"$f":"ROUND(24933.38*1.19,2)","v":29670.720000000001},"Aixam D-Truck Pritsche",13100.84,15590,11833,14081,"Leichtfahrzeug","LFZ","2023-04-11"]
[{"$nulls":13},"Goupil G4 9 kWh L7e (alle Versionen)",36235.1,{"$f":"ROUND(36235.1*1.19,2)","v":43119.77},"Piaggio Porter SR LPG",18600,22134,17635,20986,"Leichtfahrzeug","LFZ","2023-04-11"]
[{"$nulls":13},"Goupil G4 13,8 kWh L7e (alle Versionen)",41098.1,{"$f":"ROUND(41098.1*1.19,2)","v":48906.74},"Piaggio Porter SR LPG",18600,22134,22498,26773,"Leichtfahrzeug","LFZ","2023-04-11"]
[{"$nulls":12},"Bezeichnung geändert 19.02.2024","GWM Ora 03 300 48 kWh (ehem. Funky Cat, alle Versionen)",32764.71,38990,"VW Golf Life 1.5 TSI OPF 6-Gang 110 kW",26907.56,32020,5857,6970,"Kompaktklasse","PKW","2023-03-17"]
[{"$nulls":12},"Bezeichnung geändert 19.02.2024","GWM Ora 03 400 63 kWh (ehem. Funky Cat, alle Versionen)",37386.550000000003,44490,"VW Golf Life 1.5 TSI OPF 6-Gang 110 kW",26907.56,32020,10479,12470,"Kompaktklasse","PKW","2023-03-17"]
[{"$nulls":13},"GWM Ora 07 67 kWh (alle Versionen)",35285.71,41990,"Peugeot 408 100 kW",32605.040000000001,38800,2681,{"$f":"IF(P121-S121>=0,ROUND(P121-S121,0),0)","v":3190},"Kompaktklasse","PKW","2024-07-30"]
[{"$nulls":13},"GWM Ora 07 86 kWh (alle Versionen)",44949.58,53490,"Peugeot 408 100 kW",32605.040000000001,38800,{"$f":"IF(O122-R122>=0,ROUND(O122-R122,0),0)","v":12345},14690,"Kompaktklasse","PKW","2024-07-30"]
[{"$nulls":12},"zuordnung Fzg-kl. Am 21.02.2024 geändert","Honda e (alle Versionen)",33529.410000000003,39900,"Honda Jazz 1.5 i-MMD 80 kW",20042.02,23850,13487,16050,"Kleinwagen","PKW"]
[{"$nulls":13},"Honda e:Ny1 68,8 kWh (alle Versionen)",39991.599999999999,47590,"Honda HR-V",30252.1,36000,9740,11590,"Geländewagen / SUV","PKW","2024-02-14"]
[{"$nulls":13},"Hyundai Inster 42 kWh (alle Versionen)",20084.03,23900,"Hyundai i10, 1.0 Select, 46 kW",14277.31,16990,5807,6910,"Kleinwagen","PKW","2025-01-14"]
[{"$nulls":13},"Hyundai Inster 49 kWh (alle Versionen)",21344.54,25400,"Hyundai i10, 1.0 Select, 46 kW",14277.31,16990,7067,8410,"Kleinwagen","PKW","2025-01-14"]
[{"$nulls":13},"Hyundai IONIQ Elektro 38,3 kWh (alle Versionen)",29705.88,35350,"Hyundai i30 5T 1.5 T­GDI, 6­Gang,  118 kW",22462.18,26730,7244,8620,"Kompaktklasse","PKW"]
[{"$nulls":13},"Hyundai IONIQ 5 58 kWh (alle Versionen)",36890.76,43900,"Hyundai Tucson 48 V 1.6 T-GDI, 110 kW",26647.06,31710,10244,12190,"Geländewagen / SUV","PKW"]
[{"$nulls":13},"Hyundai IONIQ 5 77,4 kWh (alle Versionen)",40252.1,47900,"Hyundai Tucson 48 V 1.6 T-GDI, 110 kW",26647.06,31710,13605,16190,"Geländewagen / SUV","PKW"]
[{"$nulls":13},"Hyundai IONIQ 6 53 kWh (alle Versionen)",36890.76,43900,"Hyundai i30 Fastback 118 kW",26731.09,31810,10160,12090,"Mittelklasse","PKW"]
[{"$nulls":13},"Hyundai IONIQ 6 77,4 kWh (alle Versionen)",41092.44,48900,"Hyundai i30 Fastback 118 kW",26731.09,31810,14361,17090,"Mittelklasse","PKW"]
[{"$nulls":13},"Hyundai Kona Elektro 39,2 kWh (alle Versionen)",30588.240000000002,36400,"Hyundai Kona 1.6 GDI, Select",23529.41,28000,7059,8400,"Geländewagen / SUV","PKW"]
[{"$nulls":13},"Hyundai Kona Elektro 64,0 kWh (alle Versionen)",36050.42,42900,"Hyundai Kona 1.6 GDI, Select",23529.41,28000,12521,14900,"Geländewagen / SUV","PKW"]
[{"$nulls":13},"Jeep Avenger Elektro",31092.44,37000,"VW Taigo Life 70kW",20844.54,24805,10248,12195,"Geländewagen / SUV","PKW"]
[{"$nulls":13},"Kia e-Soul 64,0 kWh (alle Versionen)",39453.78,46950,"Kia Niro 1.6 GDI Hybrid",27386.55,32590,{"$f":"IF(O135-R135>=0,ROUND(O135-R135,0),0)","v":12067},14360,"Mini-Van","PKW"]
[{"$nulls":13},"Kia Niro EV 64,8 kWh (alle Versionen)",39991.599999999999,47590,"Kia Niro 1.6 GDI Hybrid",27386.55,32590,12605,15000,"Geländewagen / SUV","PKW"]
[{"$nulls":13},"Kia EV3 58,3 kWh (alle Versionen)",30243.7,35990,"Kia XCeed 74 kW",23268.91,27690,6975,8300,"Geländewagen / SUV","PKW","2025-02-07"]
[{"$nulls":13},"Kia EV3 81,4 kWh (alle Versionen)",34781.51,41390,"Kia XCeed 74 kW",23268.91,27690,11513,13700,"Geländewagen / SUV","PKW","2025-02-07"]
[{"$nulls":13},"Kia EV6 58 kWh (alle Versionen)",39487.39,46990,"Kia Sportage Vision 7 1,6 T GDI",28781.51,34250,10706,12740,"Geländewagen / SUV","PKW"]
[{"$nulls":13},"Kia EV6 77,4 kWh (alle Versionen)",{"$f":"ROUND(P140/1.19,2)","v":43689.08},51990,"Kia Sportage Vision 7 1,6 T GDI",{"$f":"ROUND(S140/1.19,2)","v":28781.51},34250,14908,17740,"Geländewagen / SUV","PKW"]
[{"$nulls":13},"Kia EV9 76,1 kWh (alle Versionen)",{"$f":"ROUND(P141/1.19,2)","v":52092.44},61990,"Kia Sorento Vision 2.2 CRDi",{"$f":"ROUND(S141/1.19,2)","v":46378.15},55190,5714,6800,"Geländewagen / SUV","PKW","2025-01-15"]
[{"$nulls":12},"Bezeichung geändert 03.02.2025","Kia EV9 99,8 kWh (alle Versionen)",{"$f":"ROUND(P142/1.19,2)","v":60915.97},72490,"Kia Sorento ",{"$f":"ROUND(S142/1.19,2)","v":48899.16},58190,12017,14300,"Geländewagen / SUV","PKW","2024-02-23"]
[{"$nulls":13},"Lexus RZ 300e (alle Versionen)",{"$f":"ROUND(P143/1.19,2)","v":46714.29},55590,"Lexus NZ 350h",{"$f":"ROUND(S143/1.19,2)","v":44285.71},52700,{"$f":"IF(O143-R143>=0,ROUND(O143-R143,0),0)","v":2429},{"$f":"IF(P143-S143>=0,ROUND(P143-S143,0),0)","v":2890},"Geländewagen / SUV","PKW","2025-01-21"]
[{"$nulls":13},"Lexus UX 300e (alle Versionen)",{"$f":"ROUND(P144/1.19,2)","v":37344.54},44440,"Lexus UX 250h",{"$f":"ROUND(S144/1.19,2)","v":35420.17},42150,{"$f":"IF(O144-R144>=0,ROUND(O144-R144,0),0)","v":1924},{"$f":"IF(P144-S144>=0,ROUND(P144-S144,0),0)","v":2290},"Geländewagen / SUV","PKW"]
[{"$nulls":13},"Maserati GranTurismo Folgore","nicht förderfähig gemäß Aufruf","nicht förderfähig gemäß Aufruf",null,{"$f":"ROUND(S145/1.19,2)","v":0},null,null,null,"Oberklasse","PKW","2024-03-13"]
[{"$nulls":13},"Maserati Grecale Folgore","nicht förderfähig gemäß Aufruf","nicht förderfähig gemäß Aufruf",null,0,null,null,null,"Geländewagen / SUV","PKW","2024-03-13"]
[{"$nulls":13},"Mazda MX-30 e-SKYACTIV (alle Versionen)",{"$f":"ROUND(P147/1.19,2)","v":30243.7},35990,"Mazda CX-30 SKYACTIV-G 2.0 M Hybrid",{"$f":"ROUND(S147/1.19,2)","v":22428.57},26690,7815,9300,"Geländewagen / SUV","PKW"]
[{"$nulls":13},"Mercedes Benz EQA (alle Versionen)",42670,50777.3,"Mercedes Benz GLA 180",{"$f":"ROUND(S148/1.19,2)","v":34425},40965.75,8245,9812,"Geländewagen / SUV","PKW"]
[{"$nulls":13},"Mercedes Benz EQB (alle Versionen)",{"$f":"ROUND(P149/1.19,2)","v":44160},52550.400000000001,"Mercedes Benz GLB 200",{"$f":"ROUND(S149/1.19,2)","v":36095},42953.05,8065,9597,"Geländewagen / SUV","PKW"]
[{"$nulls":13},"Mercedes Benz EQE (alle Versionen)",{"$f":"ROUND(P150/1.19,2)","v":55800},66402,"Mercedes Benz E220 d",{"$f":"ROUND(S150/1.19,2)","v":45230},53823.7,10570,12578,"Mittelklasse","PKW"]
[{"$nulls":13},"Mercedes Benz EQE SUV","nicht förderfähig gemäß Aufruf","nicht förderfähig gemäß Aufruf",null,{"$f":"ROUND(S151/1.19,2)","v":0},null,null,null,"Geländewagen / SUV","PKW"]
[{"$nulls":13},"Mercedes Benz EQS","nicht förderfähig gemäß Aufruf","nicht förderfähig gemäß Aufruf",null,0,null,null,null,"Oberklasse","PKW"]
[{"$nulls":13},"Mercedes Benz EQS SUV","nicht förderfähig gemäß Aufruf","nicht förderfähig gemäß Aufruf",null,0,null,null,null,"Geländewagen / SUV","PKW"]
[{"$nulls":13},"Mercedes-Benz eCitan (nur M1-Versionen)",{"$f":"ROUND(P154/1.19,2)","v":36220},{"$f":"ROUND(36220*1.19,2)","v":43101.8},"Mercedes Benz Citan 75 kW",21590,{"$f":"ROUND(21590*1.19,2)","v":25692.1},{"$f":"IF(O154-R154>=0,ROUND(O154-R154,0),0)","v":14630},17410,"Großraum-Van","PKW","2023-08-29"]
[{"$nulls":13},"Mercedes-Benz EQT (nur M1-Versionen)",41550,49444.5,"Mercedes Benz T 160, 75 kW",27510,32736.9,14040,16708,"Großraum-Van","PKW","2023-06-20"]
[{"$nulls":13},"Mercedes Benz EQV 250 60kWh (alle Versionen) ",59550,70864.5,"Mercedes Benz V250 d, Lang",{"$f":"ROUND(S156/1.19,2)","v":52190},62106.1,7360,8758,"Großraum-Van","PKW"]
[{"$nulls":13},"Mercedes Benz EQV 300 90kWh (alle Versionen) ",62650,74553.5,"Mercedes Benz V250 d, Lang",{"$f":"ROUND(S157/1.19,2)","v":52190},62106.1,10460,12447,"Großraum-Van","PKW"]
[{"$nulls":13},"Mercedes Benz eVito Tourer 60 kWh (nur M1-Versionen)",50990,60678.1,"MB Vito Tourer, Base , Lang",{"$f":"ROUND(S158/1.19,2)","v":41520},49408.800000000003,9470,11269,"Großraum-Van","PKW"]
[{"$nulls":13},"Mercedes Benz eVito Tourer 90 kWh (nur M1-Versionen)",53990,64248.1,"MB Vito Tourer, Base , Lang ",{"$f":"ROUND(S159/1.19,2)","v":41520},49408.800000000003,12470,14839,"Großraum-Van","PKW"]
[{"$nulls":12}," ","MG MG4 51 kWh (alle Versionen)",26882.35,31990,"Kia Ceed Vision 1.0 T-GDI 74 kW",{"$f":"ROUND(S160/1.19,2)","v":20747.900000000001},24690,6134,7300,"Kompaktklasse","PKW"]
[{"$nulls":13},"MG MG4 64 kWh (alle Versionen)",30243.7,35990,"Kia Ceed Vision 1.0 T-GDI 74 kW",20747.900000000001,24690,9496,11300,"Kompaktklasse","PKW"]
[{"$nulls":13},"MG MG5 50 kWh (alle Versionen)",29823.53,{"$f":"32812.5+2677.5","v":35490},"Kia Ceed Sportwagen 1.0 T-GDI",{"$f":"ROUND(S162/1.19,2)","v":21588.240000000002},25690,8235,9800,"Mittelklasse","PKW"]
[{"$nulls":13},"MG MG5 61 kWh (alle Versionen)",32344.54,{"$f":"35812.5+2677.5","v":38490},"Kia Ceed Sportwagen 1.0 T-GDI",{"$f":"ROUND(S163/1.19,2)","v":21588.240000000002},25690,10756,12800,"Mittelklasse","PKW"]
[{"$nulls":13},"MG Marvel-R (alle Versionen)",{"$f":"ROUND(P164/1.19,2)","v":39487.39},46990,"VW Tiguan Life 1.5 TSI OPF  6 Gang 110 kW",{"$f":"ROUND(S164/1.19,2)","v":31121.85},37035,8366,9955,"Geländewagen / SUV","PKW"]
[{"$nulls":13},"MG ZS EV (alle Versionen)",28563.03,33990,"Peugeot 2008 PureTech 130 ",{"$f":"ROUND(S165/1.19,2)","v":23571.43},28050,4992,5940,"Kompaktklasse","PKW"]
[{"$nulls":12},"Fahrzeugeinstufung?","MINI ACEMAN E 38,5 kWh (alle Versionen)",29327.73,34900,"Mini Cooper C 5-Türer",{"$f":"ROUND(S166/1.19,2)","v":25126.05},29900,4202,5000,"Kompaktklasse","PKW","2024-07-17"]
[{"$nulls":12},"Fahrzeugeinstufung?","MINI ACEMAN SE 49,2 kWh (alle Versionen)",32689.08,38900,"Mini Cooper C 5-Türer",25126.05,29900,7563,9000,"Kompaktklasse","PKW","2024-07-17"]
[{"$nulls":12},"zuordnung Fzg-kl. Am 21.02.2024 geändert","MINI COOPER SE 3-Türer (alle Versionen)",31680.67,37700,"Mini Cooper S 3-Türer",{"$f":"ROUND(S168/1.19,2)","v":26974.79},32100,4706,5600,"Mini","PKW"]
[{"$nulls":12},"zuordnung Fzg-kl. Am 21.02.2024 geändert","MINI COOPER E 36,6 kWh MY 24 (alle Versionen)",27647.06,32900,"MINI Cooper C",{"$f":"ROUND(S169/1.19,2)","v":24285.71},28900,3361,4000,"Mini","PKW","2024-02-14"]
[{"$nulls":12},"zuordnung Fzg-kl. Am 21.02.2024 geändert","MINI COOPER SE 49.2 kWh MY 24(alle Versionen)",31008.400000000001,36900,"MINI Cooper C",{"$f":"ROUND(S170/1.19,2)","v":24285.71},28900,{"$f":"IF(O170-R170>=0,ROUND(O170-R170,0),0)","v":6723},8000,"Mini","PKW","2024-02-14"]
[{"$nulls":13},"MINI Countryman E 64,6 kWh, U25 (alle Versionen)",36554.620000000003,43500,"MINI Countryman C",33529.410000000003,39900,3025,3600,"Geländewagen / SUV","PKW","2024-02-14"]
[{"$nulls":13},"Nio ET5 75 kWh (alle Versionen)",50000,59500,"BMW 330i xDrive",{"$f":"ROUND(S172/1.19,2)","v":48991.6},58300,1008,1200,"Mittelklasse","PKW"]
[{"$nulls":13},"Nio ET5 100 kWh (alle Versionen)",57563.03,68500,"BMW 330i xDrive",{"$f":"ROUND(S173/1.19,2)","v":48991.6},58300,8571,10200,"Mittelklasse","PKW"]
[{"$nulls":13},"Nio ET5 BaaS (Batterie-Abo)","nicht förderfähig gemäß Aufruf","nicht förderfähig gemäß Aufruf",null,0,null,null,null,"Mittelklasse","PKW"]
[{"$nulls":13},"Nio EL7","nicht förderfähig gemäß Aufruf","nicht förderfähig gemäß Aufruf",null,0,null,null,null,"Geländewagen / SUV","PKW"]
[{"$nulls":13},"Nio ET7","nicht förderfähig gemäß Aufruf","nicht förderfähig gemäß Aufruf",null,0,null,null,null,"Oberklasse","PKW"]
[{"$nulls":13},"Nissan ARIYA 63 kWh (alle Versionen)",39907.56,47490,"Nissan X-Trail",{"$f":"ROUND(S177/1.19,2)","v":33109.24},39400,6798,8090,"Geländewagen / SUV","PKW"]
[{"$nulls":13},"Nissan ARIYA 87 kWh (alle Versionen)",53352.94,63490,"Nissan X-Trail",{"$f":"ROUND(S178/1.19,2)","v":37310.92},44400,16042,19090,"Geländewagen / SUV","PKW"]
[{"$nulls":13},"Nissan Leaf 39 kwh (alle Versionen)",28067.23,33400,"Nissan Qashqai 1.3 DIG-T 103 kW",{"$f":"ROUND(S179/1.19,2)","v":24067.23},28640,4000,4760,"Kompaktklasse","PKW"]
[{"$nulls":13},"Nissan Leaf 59 kwh (alle Versionen)",34537.82,41100,"Nissan Qashqai 1.3 DIG-T 116 kW",{"$f":"ROUND(S180/1.19,2)","v":29058.82},34580,5479,6520,"Kompaktklasse","PKW"]
[{"$nulls":12},"Preis ist falsch (eNV200)","Nissan Townstar EV (nur M1-Versionen)",28660,34105.4,"Nissan Townstar (nur M1-Versionen)",{"$f":"ROUND(S181/1.19,2)","v":20210},24049.9,8450,10056,"Großraum-Van","PKW","Herr Zobel Autotreff Oranke"]
[{"$nulls":12},"L6e (45 km/h)","Ökoflitzer Paxster 2.2 L6e (alle Versionen)",16900,{"$f":"ROUND(16900*1.19,2)","v":20111},"Aixam D-Truck Pritsche",13100.84,15590,3799,4521,"Leichtfahrzeug","LFZ","2023-04-06"]
[{"$nulls":12},"L7e (60 km/h)","Ökoflitzer Paxster 2.2 L7e (alle Versionen)",17329,{"$f":"ROUNDDOWN((16900+429)*1.19,2)","v":20621.509999999998},"Aixam D-Truck Pritsche",13100.84,15590,4228,5032,"Leichtfahrzeug","LFZ","2023-04-06"]
[{"$nulls":13},"Opel Astra Electric (alle Versionen)",37865.550000000003,45060,"Opel Astra (96 kW)",26663.87,31730,11202,13330,"Kompaktklasse","PKW","2023-06-20"]
[{"$nulls":13},"Opel Combo-e Life (alle Versionen)",36176.47,43050,"Renaut Kangoo TCe 74 kW",21806.720000000001,25950,14370,17100,"Großraum-Van","PKW"]
[{"$nulls":13},"Opel Corsa-e (alle Versionen)",30584.03,36395,"Opel Corsa Elegance (74 kW)",18756.3,22320,{"$f":"IF(O186-R186>=0,ROUND(O186-R186,0),0)","v":11828},14075,"Kleinwagen","PKW"]
[{"$nulls":12}," ","Opel Frontera-e",{"$f":"ROUND(P187/1.19,2)","v":24361.34},28990,"Opel Frontera 74 kW",{"$f":"ROUND(S187/1.19,2)","v":20084.03},23900,{"$f":"IF(O187-R187>=0,ROUND(O187-R187,0),0)","v":4277},{"$f":"IF(P187-S187>=0,ROUND(P187-S187,0),0)","v":5090},"Geländewagen / SUV","PKW","2024-08-16"]
[{"$nulls":13},"Opel Grandland Electric 73 kWh (alle Versionen)",{"$f":"ROUND(P188/1.19,2)","v":39285.71},46750,"Opel Grandland 1.2",{"$f":"ROUND(S188/1.19,2)","v":30588.240000000002},36400,8697,10350,"Geländewagen / SUV","PKW","2025-01-24"]
[{"$nulls":13},"Opel Grandland Electric 82 kWh (alle Versionen)",43655.46,51950,"Opel Grandland 1.2",30588.240000000002,36400,13067,15550,"Geländewagen / SUV","PKW","2025-01-24"]
[{"$nulls":12},"zuordnung Fzg-kl. Am 21.02.2024 geändert","Opel Mokka-E (alle Versionen)",34159.660000000003,40650,"Opel Mokka 1.2 Elegance 74 kW",22168.07,26380,11992,14270,"Geländewagen / SUV","PKW"]
[{"$nulls":13},"Opel Rocks-e (alle Versionen)",6714.29,7990,"Kymco Maxxer S300 T ONROAD LOF (Quad)",4957.1400000000003,5899,1757,2091,"Leichtfahrzeug","LFZ","2023-03-16"]
[{"$nulls":13},"Opel Vivaro-e Kombi / Doppelkabine 50 kWh (nur M1-Versionen)",42500,{"$f":"42500*1.19","v":50575},"Opel Vivaro Doppelkabine M",36650,{"$f":"36650*1.19","v":43613.5},5850,6962,"Großraum-Van","PKW","2023-04-13"]
[{"$nulls":13},"Opel Vivaro-e Kombi / Doppelkabine 75 kWh (nur M1-Versionen)",47500,{"$f":"47500*1.19","v":56525},"Opel Vivaro Doppelkabine M",36650,{"$f":"36650*1.19","v":43613.5},10850,12912,"Großraum-Van","PKW","2023-04-13"]
[{"$nulls":13},"Opel Zafira-E Life 50 kWh (nur M1-Versionen)",53151.26,63250,"Toyota Proace Verso 106 kW, L1-Version ",44302.52,52720,8849,10530,"Großraum-Van","PKW"]
[{"$nulls":13},"Opel Zafira-E Life 75 kWh (nur M1-Versionen)",58193.279999999999,69250,"Toyota Proace Verso 106 kW, L1-Version ",44302.52,52720,13891,16530,"Großraum-Van","PKW"]
[{"$nulls":13},"Peugeot e-208 (alle Versionen)",29705.88,35350,"Peugeot 208 PureTech 100 Allure",19621.849999999999,23350,10084,12000,"Kleinwagen","PKW"]
[{"$nulls":13},"Peugeot e-2008 (alle Versionen)",31848.74,37900,"Peugeot 2008 PureTech 100 Allure",22857.14,27200,8992,10700,"Geländewagen / SUV","PKW"]
[{"$nulls":13},"Peugeot e-308 (alle Versionen)",37617.65,44765,"Peugeot 308 PureTech 130",26260.5,31250,11357,13515,"Kompaktklasse","PKW","2023-09-29"]
[{"$nulls":13},"Peugeot E-3008 (alle Versionen) 73 kWh",40882.35,48650,"Peugeot 3008 ",32983.19,39250,7899,9400,"Geländewagen / SUV","PKW","2024-03-26"]
[{"$nulls":13},"Peugeot E-408 (alle Versionen)",39159.660000000003,46600,"Peugeot 408",33655.46,40050,5504,6550,"Geländewagen / SUV","PKW","2025-01-23"]
[{"$nulls":13},"Peugeot E-5008 (alle Versionen) 73 kWh",42983.19,51150,"Peugeot 5008 ",36252.1,43140,6731,8010,"Geländewagen / SUV","PKW","2025-01-23"]
[{"$nulls":13},"Peugeot E-5008 (alle Versionen) 97 kWh",46428.57,55250,"Peugeot 5008 ",{"$f":"ROUND(S202/1.19,2)","v":36252.1},43140,{"$f":"IF(O202-R202>=0,ROUND(O202-R202,0),0)","v":10176},{"$f":"IF(P202-S202>=0,ROUND(P202-S202,0),0)","v":12110},"Geländewagen / SUV","PKW","2025-01-23"]
[{"$nulls":13},"Peugeot E-Expert Kombi 50kWh (nur M1-Versionen)",43647.06,51940,"Toyota Proace Verso (keine förderfähigen Investitionsmehrausgaben)",44302.52,52720,0,0,"Großraum-Van","PKW"]
[{"$nulls":13},"Peugeot E-Expert Kombi 75kWh (nur M1-Versionen)",48689.08,57940,"Toyota Proace Verso 106 kW, L1-Version ",44302.52,52720,4387,5220,"Großraum-Van","PKW"]
[{"$nulls":13},"Peugeot E-Traveller 50kWh (nur M1-Versionen)",45075.63,53640,"Toyota Proace Verso 106 kW, L1-Version ",44302.52,52720,773,920,"Großraum-Van","PKW"]
[{"$nulls":13},"Peugeot E-Traveller 75kWh (nur M1-Versionen)",50117.65,59640,"Toyota Proace Verso 106 kW, L1-Version ",44302.52,52720,5815,6920,"Großraum-Van","PKW"]
[{"$nulls":13},"Peugeot e-Rifter (nur M1-Versionen)",34655.46,41240,"Peugeot Rifter PureTech 110 81 kW L1 ",23336.13,27770,11319,13470,"Großraum-Van","PKW"]
[{"$nulls":13},"Polestar 2 Standard Range(alle Versionen)",41168.07,48990,"Volvo S60 (keine förderfähigen Investitionsmehrausgaben)",41680.67,49600,0,0,"Mittelklasse","PKW"]
[{"$nulls":13},"Polestar 2 Long Range (alle Versionen))",44277.31,52690,"Volvo S60",41680.67,49600,2597,3090,"Mittelklasse","PKW"]
[{"$nulls":13},"Polestar 3 (alle Versionen))","nicht förderfähig gemäß Aufruf","nicht förderfähig gemäß Aufruf",null,0,null,null,null,"Großraum-Van","PKW","2024-07-19"]
[{"$nulls":12}," ","Polestar 4 Standard Range(alle Versionen)",52016.81,61900,"Volvo XC60",47890.76,56990,{"$f":"IF(O211-R211>=0,ROUND(O211-R211,0),0)","v":4126},4910,"Geländewagen / SUV","PKW","2024-07-19"]
[{"$nulls":13},"Polestar 4 Long Range (alle Versionen))",58739.5,69900,"Volvo XC60",47890.76,56990,10849,12910,"Geländewagen / SUV","PKW","2024-07-19"]
[{"$nulls":13},"Porsche Taycan (alle Versionen)","nicht förderfähig gemäß Aufruf","nicht förderfähig gemäß Aufruf",null,0,null,null,null,"Oberklasse","PKW",null,0]
[{"$nulls":13},"Renault 5 Urban Range 40 kWh (alle Versionen)",{"$f":"ROUND(P214/1.19,2)","v":20924.37},24900,"Renault Clio Eco-G 100",{"$f":"ROUND(S214/1.19,2)","v":17016.810000000001},20250,{"$f":"IF(O214-R214>=0,ROUND(O214-R214,0),0)","v":3908},{"$f":"IF(P214-S214>=0,ROUND(P214-S214,0),0)","v":4650},"Kleinwagen","PKW","2025-01-24"]
[{"$nulls":13},"Renault 5 E-Tech 52 kWh (alle Versionen)",{"$f":"ROUND(P215/1.19,2)","v":27647.06},32900,"Renault Clio Eco-G 100",17016.810000000001,20250,{"$f":"IF(O215-R215>=0,ROUND(O215-R215,0),0)","v":10630},12650,"Kleinwagen","PKW","2024-07-15"]
[{"$nulls":12},"Rechtschreibfehler berichtigt","Renault Kangoo E-TECH (alle Versionen)",33025.21,39300,"Renaut Kangoo TCe 74 kW",21806.720000000001,25950,11218,13350,"Großraum-Van","PKW"]
[{"$nulls":13},"Renault Megane E-TECH EV40 40kWh (alle Versionen)",35294.120000000003,42000,"Renault Megane TCe 140 103 kW",23949.58,28500,11345,13500,"Kompaktklasse","PKW"]
[{"$nulls":13},"Renault Megane E-TECH EV60 60kWh (alle Versionen)",39159.660000000003,46600,"Renault Megane TCe 140 103 kW",23949.58,28500,15210,18100,"Kompaktklasse","PKW"]
[{"$nulls":12},"zuordnung Fzg-kl. Am 21.02.2024 geändert","Renault Scenic E-Tech 170 Comfort Range (alle Versionen)",34789.919999999998,41400,"Renault Austral Mild Hybrid 116 kW",28529.41,33950,6261,7450,"Geländewagen / SUV","PKW","2024-01-11"]
[{"$nulls":12},"zuordnung Fzg-kl. Am 21.02.2024 geändert","Renault Scenic E-Tech 220 Long Range (alle Versionen)",41092.44,48900,"Renault Austral Mild Hybrid 116 kW",28529.41,33950,12563,14950,"Geländewagen / SUV","PKW","2024-01-11"]
[{"$nulls":13},"Renault Zoe Z.E.50 (alle Versionen)",30957.98,36840,"Renault Clio Zen  Sce 75/5-türig",16470.59,19600,14487,17240,"Kleinwagen","PKW"]
[{"$nulls":12},"zuordnung Fzg-kl. Am 21.02.2024 geändert","Renault Twingo Electric (alle Versionen)",23529.41,28000,"Renault Twingo SCe 65",13529.41,16100,10000,11900,"Mini","PKW"]
[{"$nulls":13},"Renault Twizy  (alle Versionen)",9621.85,11450,"Kymco Maxxer S300 T ONROAD LOF (Quad)",4957.1400000000003,5899,4665,5551,"Leichtfahrzeug","LFZ"]
[{"$nulls":13},"RollsRoyce Spectre","nicht förderfähig gemäß Aufruf",{"$nulls":6},"Oberklasse","PKW","2024-03-13"]
[{"$nulls":13},"Silence SO4 11,2 kWh (alle Versionen)",13145.38,15643,"Aixam City Pack",10075.629999999999,11990,3070,3653,"Leichtfahrzeug","LFZ","2023-03-17"]
[{"$nulls":13},"Skoda Elroq 50 52 kWh (alle Versionen)",28487.39,33900,"Skoda Karoq 1,0 l TSI, 85 kW, 6-Gang Schaltgetriebe",28512.61,33930,0,0,"Geländewagen / SUV","PKW","2025-01-14"]
[{"$nulls":13},"Skoda Elroq 60 59 kWh (alle Versionen",32268.91,38400,"Skoda Karoq 1,0 l TSI, 85 kW, 6-Gang Schaltgetriebe",28512.61,33930,3756,4470,"Geländewagen / SUV","PKW","2025-01-23"]
[{"$nulls":13},"Skoda Elroq 85 77 kWh (alle Versionen)",36890.76,43900,"Skoda Karoq 1,0 l TSI, 85 kW, 6-Gang Schaltgetriebe",{"$f":"ROUND(S228/1.19,2)","v":28512.61},33930,8378,9970,"Geländewagen / SUV","PKW","2025-01-14"]
[{"$nulls":12},"Bezeichnung geändert 29.08.24","Skoda ENYAQ iV 60 58 kWh (alle Versionen)",35378.15,42100,"Skoda Kodiaq 1,5 l TSI ACT1 110 kW, 6 Gang",31739.5,37770,3639,4330,"Geländewagen / SUV","PKW"]
[{"$nulls":12},"Bezeichnung geändert 29.08.24","Skoda ENYAQ iV 80/85 78 kWh (alle Versionen)",39327.730000000003,46800,"Skoda Kodiaq 1,5 l TSI ACT1 110 kW, 6 Gang",31739.5,37770,7588,9030,"Geländewagen / SUV","PKW"]
[{"$nulls":13},"Smart EQ fortwo (alle Versionen)",{"$f":"ROUND(P231/1.19,2)","v":18436.97},21940,"Mercedes Benz smart 52 kW (nur Preisliste von 2018)",{"$f":"ROUND(S231/1.19,2)","v":9382.35},11165,9055,10775,"Mini","PKW"]
[{"$nulls":13},"Smart #1 49 kWh (alle Versionen)",{"$f":"ROUND(P232/1.19,2)","v":31504.2},37490,"Mercedes Benz GLA 180",{"$f":"ROUND(S232/1.19,2)","v":34425},40965.75,0,0,"Geländewagen / SUV","PKW","2024-02-15"]
[{"$nulls":12},"Bezeichnung geändert 19.02.2024","Smart #1 66 kWh (alle Versionen)",{"$f":"ROUND(P233/1.19,2)","v":34865.550000000003},41490,"Mercedes Benz GLA 180",34425,40965.75,441,524,"Geländewagen / SUV","PKW"]
[{"$nulls":13},"Smart #3 49 kWh (alle Versionen)",{"$f":"ROUND(P234/1.19,2)","v":32344.54},38490,"Mercedes Benz GLA 180",34425,40965.75,0,0,"Geländewagen / SUV","PKW","2024-02-15"]
[{"$nulls":13},"Smart #3 66 kWh (alle Versionen)",{"$f":"ROUND(P235/1.19,2)","v":36546.22},43490,"Mercedes Benz GLA 180",34425,40965.75,2121,2524,"Geländewagen / SUV","PKW","2024-02-15"]
[{"$nulls":13},"SsangYong Korando e-Motion (alle Versionen)",35705.879999999997,42490,"SsangYong Korando Crystal",23941.18,28490,11765,14000,"Geländewagen / SUV","PKW"]
[{"$nulls":13},"Subaru Solterra (alle Versionen)",48310.92,57490,"Subaru Outback 2.5i Active",37596.639999999999,44740,10714,12750,"Geländewagen / SUV","PKW"]
[{"$nulls":13},"Tesla Model 3 Standard-Range (alle Versionen)",36966.39,43990,"BMW 320i (keine förderfähigen Investitionsmehrausgaben)",42605.04,50700,0,0,"Mittelklasse","PKW"]
[{"$nulls":13},"Tesla Model 3 Long Range (alle Versionen)",45369.75,53990,"BMW 330i (keine förderfähigen Investitionsmehrausgaben)",48991.6,58300,0,0,"Mittelklasse","PKW"]
[{"$nulls":13},"Tesla Model S (alle Versionen)","nicht förderfähig gemäß Aufruf","nicht förderfähig gemäß Aufruf",{"$nulls":5},"Oberklasse","PKW"]
[{"$nulls":13},"Tesla Model Y Standard Range (alle Versionen)",{"$f":"ROUND(P241/1.19,2)","v":37722.69},44890,"BMW X3 xDrive20d (keine förderfähigen Investitionsmehrausgaben)",{"$f":"ROUND(S241/1.19,2)","v":49243.7},58600,0,0,"Geländewagen / SUV","PKW"]
[{"$nulls":13},"Tesla Model Y LongRange (alle Versionen)",{"$f":"ROUND(P242/1.19,2)","v":46210.080000000002},54990,"BMW X3 xDrive30d (keine förderfähigen Investitionsmehrausgaben)",{"$f":"ROUND(S242/1.19,2)","v":55378.15},65900,0,0,"Geländewagen / SUV","PKW"]
[{"$nulls":13},"Tesla Model X (alle Versionen)","nicht förderfähig gemäß Aufruf","nicht förderfähig gemäß Aufruf",{"$nulls":5},"Geländewagen / SUV","PKW"]
[{"$nulls":13},"Toyota bZ4X (alle Versionen)",{"$f":"ROUND(P244/1.19,2)","v":39907.56},47490,"Toyota RAV4 160 kW",{"$f":"ROUND(S244/1.19,2)","v":36798.32},43790,3109,3700,"Geländewagen / SUV","PKW"]
[{"$nulls":13},"Toyota Proace City Verso Electric",31764.71,37800,"Toyota Proace City Verso",22495.8,26770,9269,11030,"Großraum-Van","PKW","2023-04-25"]
[{"$nulls":13},"Toyota Proace Verso Electric 75kWh (nur M1-Versionen)",54226.89,64530,"Toyota Proace Verso 106 kW, L1-Version ",44302.52,52720,9924,11810,"Großraum-Van","PKW"]
[{"$nulls":13},"Volkswagen e-up!",25205.88,29995,"VW up!",13743.7,16355,11462,13640,"Kleinwagen","PKW"]
[{"$nulls":13},"Volkswagen ID.3  52 kWh (alle Versionen)",31008.400000000001,36900,"VW Golf Life 1.5 TSI OPF 6-Gang 110 kW",26907.56,32020,4101,4880,"Kompaktklasse","PKW","2024-07-15"]
[{"$nulls":13},"Volkswagen ID.3  58 kWh (alle Versionen)",33609.24,39995,"VW Golf Life 1.5 TSI OPF 6-Gang 110 kW",26907.56,32020,6702,7975,"Kompaktklasse","PKW"]
[{"$nulls":13},"Volkswagen ID.3 77 kWh (alle Versionen)",36886.550000000003,{"$f":"P249+3900","v":43895},"VW Golf Life 1.5 TSI OPF 6-Gang 110 kW",26907.56,32020,9979,11875,"Kompaktklasse","PKW"]
[{"$nulls":13},"Volkswagen ID.4 52 kWh (alle Versionen)",33894.959999999999,40335,"VW Tiguan Life 1.5 TSI OPF  6 Gang 110 kW",31121.85,37035,2773,3300,"Geländewagen / SUV","PKW","2023-06-22"]
[{"$nulls":13},"Volkswagen ID.4 77 kWh (alle Versionen)",38936.97,46335,"VW Tiguan Life 1.5 TSI OPF  6 Gang 110 kW",31121.85,37035,7815,9300,"Geländewagen / SUV","PKW"]
[{"$nulls":13},"Volkswagen ID.5 52 kWh (alle Versionen)",36109.24,42970,"VW Tiguan Life 1.5 TSI OPF  6 Gang 110 kW",31121.85,37035,4987,5935,"Geländewagen / SUV","PKW","2024-09-20"]
[{"$nulls":13},"Volkswagen ID.5 77 kWh (alle Versionen)",{"$f":"ROUND(P254/1.19,2)","v":40281.51},47935,"VW Tiguan Life 1.5 TSI OPF  6 Gang 110 kW",{"$f":"ROUND(S254/1.19,2)","v":31121.85},37035,{"$f":"IF(O254-R254>=0,ROUND(O254-R254,0),0)","v":9160},{"$f":"IF(P254-S254>=0,ROUND(P254-S254,0),0)","v":10900},"Geländewagen / SUV","PKW"]
[{"$nulls":13},"Volkswagen ID.7 77 kWh (alle Versionen)",47894.96,56995,"VW Arteon Shooting Brake",39722.69,47270,8172,9725,"Mittelklasse","PKW","2023-08-25"]
[{"$nulls":13},"Volkswagen ID.7 86 kWh (alle Versionen)",49567.23,58985,"VW Arteon Shooting Brake",39722.69,47270,9845,11715,"Mittelklasse","PKW","2024-07-15"]
[{"$nulls":12},"Freestyle","Volkswagen ID.Buzz 59 kWh (alle Versionen)",42015,49997.85,"VW Transporter Kombi 2.0 TDI SCR",35200,41888,6815,8110,"Großraum-Van","PKW","2024-09-16"]
[{"$nulls":13},"Volkswagen ID.Buzz 77 kWh (alle Versionen)",54270,64581.3,"VW Multivan 1.5 TSI OPF",38350,45636.5,15920,18945,"Großraum-Van","PKW"]
[{"$nulls":13},"Volkswagen ID.Buzz 86 kWh (alle Versionen)",52705,62718.95,"VW Multivan 1.5 TSI OPF",38350,45636.5,14355,17082,"Großraum-Van","PKW","2024-07-15"]
[{"$nulls":13},"Volkswagen e-Caravelle 64 kWh (nur M1-Versionen)",55690,66271.100000000006,"Volkswagen Caravelle, 2.0 TDI, 81 kW, 6-Gang",43945,52294.55,11745,13977,"Großraum-Van","PKW","2025-01-14"]
[{"$nulls":13},"Volkswagen e-Transporter Kombi, 64 kWh (nur M1-Versionen)",52705,62718.95,"Volkswagen Transporter Kombi, 2.0 TDI, 81 kW, 6-Gang",41170,48992.3,11535,13727,"Großraum Van","PKW","2025-01-14"]
[{"$nulls":13},"Volvo EX30 51 kWh (alle Versionen)",30747.9,36590,"Mercedes Benz GLA 180 (keine förderfähigen Investitionsmehrausgaben)",34425,40965.75,0,0,"Geländewagen / SUV","PKW","2024-02-15"]
[{"$nulls":13},"Volvo EX30 69 kWh (alle Versionen)",35117.65,41790,"Mercedes Benz GLA 180",34425,40965.75,693,824,"Geländewagen / SUV","PKW","2024-02-15"]
[{"$nulls":12},"Änderung der Bezeichnung","Volvo C40/EC40 Recharge Pure Electric Standard Range (alle Versionen)",39915.97,47500,"Volvo XC40 B4",39453.78,46950,462,550,"Geländewagen / SUV","PKW"]
[{"$nulls":13},"Volvo C40/EC40 Recharge Pure Electric Extended Range (alle Versionen)",45756.3,{"$f":"P264+6950","v":54450},"Volvo XC40 B4",39453.78,46950,6303,7500,"Geländewagen / SUV","PKW","2024-08-20"]
[{"$nulls":12},"Änderung der Bezeichnung","Volvo XC40/EX40 Recharge Pure Electric Standard Range (alle Versionen)",39915.97,47500,"Volvo XC40 B4",39453.78,46950,{"$f":"IF(O266-R266>=0,ROUND(O266-R266,0),0)","v":462},550,"Geländewagen / SUV","PKW"]
[{"$nulls":13},"Volvo XC40/EX40 Recharge Pure Electric Extended Range (alle Versionen)",44537.82,{"$f":"P266+5500","v":53000},"Volvo XC40 B4",39453.78,46950,5084,6050,"Geländewagen / SUV","PKW","2024-08-20"]
[{"$nulls":13},"Volvo EX90","nicht förderfähig gemäß Aufruf","nicht förderfähig gemäß Aufruf",null,null,null,0,0,"Geländewagen / SUV","PKW"]
[{"$nulls":13},"ZEEKR X Long Range (alle Versionen)",{"$f":"ROUND(P269/1.19,2)","v":37806.720000000001},44990,"Volvo XC40 B4 (keine förderfähigen Investitionsmehrausgaben)",{"$f":"ROUND(S269/1.19,2)","v":39453.78},46950,{"$f":"IF(O269-R269>=0,ROUND(O269-R269,0),0)","v":0},0,"Geländewagen / SUV","PKW","2024-03-13"]
[{"$nulls":13},"ZEEKR 001",50336.13,59900,"Audi A6 40TDI S tronic",47142.86,56100,3193,3800,"Mittelklasse","PKW","2024-02-15"]
[{"$nulls":13},"Fahrzeugsegment Leichtfahrzeug","*","*","z.B. Renault Twizzy Life, Aixam eCity…","*","*",{"$f":"ROUND(U271/1.19,0)","v":22498},{"$f":"GETPIVOTDATA(\"förderfähig brutto\",$N$284,\"Info Segment\",V271)","v":26773},"Leichtfahrzeug","LFZ"]
[{"$nulls":13},"Fahrzeugsegment Kleinwagen","*","*","z.B. Mini, Renault Zoe…","*","*",14487,17240,"Kleinwagen","PKW"]
[{"$nulls":13},"Fahrzeugsegment Kompaktklasse","*","*","z.B. Nissan Leaf, VW ID.3…","*","*",15210,18100,"Kompaktklasse","PKW"]
[{"$nulls":13},"Fahrzeugsegment Mini","*","*","z.B. Smart EQ…","*","*",15126,18000,"Mini","PKW"]
[{"$nulls":13},"Fahrzeugsegment Mittelklasse","*","*","z.B. BMW i4, Tesla Model 3…","*","*",14361,17090,"Mittelklasse","PKW"]
[{"$nulls":13},"Fahrzeugsegment Mini-Van","*","*","z.B. Kia e-Soul…","*","*",12067,14360,"Mini-Van","PKW"]
[{"$nulls":13},"Fahrzeugsegment Großraum-Van","*","*","z.B. Opel Zafira Life, VW ID.Buzz…","*","*",15920,18945,"Großraum-Van","PKW"]
[{"$nulls":13},"Fahrzeugsegment Geländewagen / SUV","*","*","z.B. BMW iX3, VW ID.4, Mercedes Benz EQB…","*","*",16042,19090,"Geländewagen / SUV","PKW"]
[]
[]
[]
[]
[]
[{"$nulls":13},"Maximum von förderfähig brutto"]
[{"$nulls":13},"Info Segment","Ergebnis"]
[{"$nulls":13},"Kleinwagen",17240]
[{"$nulls":13},"Kompaktklasse",18100]
[{"$nulls":13},"Leichtfahrzeug",26773]
[{"$nulls":13},"Mini",18000]
[{"$nulls":13},"Mini-Van",14360]
[{"$nulls":13},"Mittelklasse",17090]
[{"$nulls":13},"Oberklasse"]
[{"$nulls":13},"Geländewagen / SUV",19090]
[{"$nulls":13},"Großraum-Van",18945]
[{"$nulls":13},"(Leer)"]
[{"$nulls":13},"Großraum Van",13727]
[{"$nulls":13},"Gesamtergebnis",26773]

{"sheet":"sonst. PKW u. LFZ","index":2,"n_rows":29,"n_cols":11,"rows_kept":29,"cut":false,"hidden":true,"merged":[[2,0,2,9],[3,0,3,9]]}
["Ermittlung der förderfähigen Ausgaben (EfA) für sonst. PKW u. LFZ",{"$nulls":9},{"$f":"IF(Fahrzeuge!$L$1=0, \" \",\"FKZ: 03EMI4\"&Fahrzeuge!$L$1)","v":" "}]
["Hinweise:"]
["Hierfür müssen Sie entsprechende Angebote für das E-Fahrzeug und ein Referenzfahrzeug eingeholt haben. Diese Angebote sind beizufügen."]
[{"$f":"IF(Fahrzeuge!C6=\"\",\"Bitte geben Sie auf der Registerkarte 'Fahrzeuge'  an, ob Sie zum Vorsteuerabzug berechtigt sind.\",\"\")","v":"Bitte geben Sie auf der Registerkarte 'Fahrzeuge'  an, ob Sie zum Vorsteuerabzug berechtigt sind."}]
[]
["Pos.","Typ E-Fahrzeug",{"$f":"IF(Fahrzeuge!$C$6=\"nein\",\"Bruttopreis\nE-Fahrzeug laut beigefügtem Angebot *\",IF(Fahrzeuge!$C$6=\"ja\",\"Nettopreis\nE-Fahrzeug laut beigefügtem Angebot *\",\"Bitte wählen sie aus, ob sie zum Vorsteuerabzug berechtigt sind!\"))","v":"Bitte wählen sie aus, ob sie zum Vorsteuerabzug berechtigt sind!"},"Typ Referenzfahrzeug",{"$f":"IF(Fahrzeuge!$C$6=\"nein\",\"Bruttopreis Referenzfahrzeug\nlaut beigefügtem Angebot *\",IF(Fahrzeuge!$C$6=\"ja\",\"Nettopreis Referenzfahrzeug\nlaut beigefügtem Angebot *\",\"Bitte wählen sie aus, ob sie zum Vorsteuerabzug berechtigt sind!\"))","v":"Bitte wählen sie aus, ob sie zum Vorsteuerabzug berechtigt sind!"},{"$f":"IF(Fahrzeuge!$C$6=\"nein\",\"Förderfähige Ausgaben pro Fahrzeug (brutto)\",IF(Fahrzeuge!$C$6=\"ja\",\"Förderfähige Ausgaben pro Fahrzeug (netto)\",\"Bitte wählen sie aus, ob sie zum Vorsteuerabzug berechtigt sind!\"))","v":"Bitte wählen sie aus, ob sie zum Vorsteuerabzug berechtigt sind!"},"Anzahl zu beschaffender Fahrzeuge des Typs","erwartete durchschnittliche Jahres-Fahrleistung in km*","* alternativ: erwartete Jahresbetriebs-stunden","Förderfähige Ausgaben ","Korrekturfeld PtJ"]
[1,{"$nulls":4},{"$f":"IF(B7>\"\",IF($A$4=\"\",C7-E7,$F$6),\"\")","v":""},null,null,null,{"$f":"IF(B7>\"\",F7*G7,\"\")","v":""}]
[]
[2,{"$nulls":4},{"$f":"IF(B9>\"\",IF($A$4=\"\",C9-E9,$F$6),\"\")","v":""},null,null,null,{"$f":"IF(B9>\"\",F9*G9,\"\")","v":""}]
[]
[3,{"$nulls":4},"",null,null,null,""]
[]
[4,{"$nulls":4},"",null,null,null,""]
[]
[5,{"$nulls":4},"",null,null,null,""]
[]
[6,{"$nulls":4},"",null,null,null,""]
[]
[7,{"$nulls":4},"",null,null,null,""]
[]
[8,{"$nulls":4},"",null,null,null,""]
[]
[9,{"$nulls":4},"",null,null,null,""]
[]
[10,{"$nulls":4},"",null,null,null,""]
[]
["Summe",{"$nulls":5},{"$f":"IF(COUNTA(G7:G25)=COUNTA(H7:I25),\"\",\"Anzahl oder Angabe Fahrleistung / Betr.-Std. fehlt oder doppelt\")","v":""},{"$f":"IFERROR(\"Ø: \"&TEXT((SUMPRODUCT($G7:$G25,H7:H25)/SUMIFS($G7:$G25,H7:H25,\">0\")),\"#.##0\"),\"\")","v":""},{"$f":"IFERROR(\"Ø: \"&TEXT((SUMPRODUCT($G7:$G25,I7:I25)/SUMIFS($G7:$G25,I7:I25,\">0\")),\"#.##0\"),\"\")","v":""},{"$f":"SUM(J7:J25)","v":0}]
[]
["* Für Fahrzeuge, bei denen eine Jahresfahrleistung keine Relevanz hat, können auch die jährlichen Betriebsstunden angesetzt werden (z.B. bei Staplerfahrzeugen mit Li-Batterie)"]

{"sheet":"Ladeinfrastruktur","index":3,"n_rows":53,"n_cols":11,"rows_kept":53,"cut":false,"hidden":false,"merged":[[30,2,30,5],[31,2,31,5],[2,0,2,5],[27,2,27,5],[28,2,28,5],[29,2,29,5]]}
["Ermittlung der förderfähigen Ausgaben (EfA) - Pauschalen für Ladeinfrastruktur",{"$nulls":4},{"$f":"IF(Fahrzeuge!$L$1=0, \" \",\"FKZ: 03EMI4\"&Fahrzeuge!$L$1)","v":" "}]
[{"$f":"IF(Fahrzeuge!C6=\"\",\"Hinweis:\",\"\")","v":"Hinweis:"}]
[{"$f":"IF(Fahrzeuge!C6=\"\",\"Bitte geben Sie auf der Registerkarte 'Fahrzeuge'  an, ob Sie zum Vorsteuerabzug berechtigt sind\",\"\")","v":"Bitte geben Sie auf der Registerkarte 'Fahrzeuge'  an, ob Sie zum Vorsteuerabzug berechtigt sind"}]
[]
["Pos.","Typ Ladeinfrastruktur (LIS)*\n[Auswahlbox]",{"$f":"IF(Fahrzeuge!$C$6=\"nein\",\"Förderfähige Ausgaben pro Ladesäule (brutto)\",IF(Fahrzeuge!$C$6=\"ja\",\"Förderfähige Ausgaben pro Ladesäule (netto)\",\"Bitte wählen sie aus, ob sie zum Vorsteuerabzug berechtigt sind!\"))","v":"Bitte wählen sie aus, ob sie zum Vorsteuerabzug berechtigt sind!"},"Anzahl zu beschaffender Ladesäulen des Typs","Förderfähige Ausgaben ","Korrekturfeld PtJ"]
[1,null,{"$f":"IF($B6>0,IF(Fahrzeuge!$C$6=\"nein\",VLOOKUP($B6,$I$41:$K$53,3,0),IF(Fahrzeuge!$C$6=\"ja\",VLOOKUP($B6,$I$41:$K$53,2,0),\"Bitte wählen sie aus, ob sie zum Vorsteuerabzug berechtigt sind!\")),\"\")","v":""},null,{"$f":"IF(D6>0,C6*D6,\"\")","v":""}]
[]
[2,null,{"$f":"IF($B8>0,IF(Fahrzeuge!$C$6=\"nein\",VLOOKUP($B8,$I$41:$K$53,3,0),IF(Fahrzeuge!$C$6=\"ja\",VLOOKUP($B8,$I$41:$K$53,2,0),\"Bitte wählen sie aus, ob sie zum Vorsteuerabzug berechtigt sind!\")),\"\")","v":""},null,{"$f":"IF(D8>0,C8*D8,\"\")","v":""}]
[]
[3,null,{"$f":"IF($B10>0,IF(Fahrzeuge!$C$6=\"nein\",VLOOKUP($B10,$I$41:$K$53,3,0),IF(Fahrzeuge!$C$6=\"ja\",VLOOKUP($B10,$I$41:$K$53,2,0),\"Bitte wählen sie aus, ob sie zum Vorsteuerabzug berechtigt sind!\")),\"\")","v":""},null,{"$f":"IF(D10>0,C10*D10,\"\")","v":""}]
[]
[4,null,{"$f":"IF($B12>0,IF(Fahrzeuge!$C$6=\"nein\",VLOOKUP($B12,$I$41:$K$53,3,0),IF(Fahrzeuge!$C$6=\"ja\",VLOOKUP($B12,$I$41:$K$53,2,0),\"Bitte wählen sie aus, ob sie zum Vorsteuerabzug berechtigt sind!\")),\"\")","v":""},null,{"$f":"IF(D12>0,C12*D12,\"\")","v":""}]
[]
[5,null,{"$f":"IF($B14>0,IF(Fahrzeuge!$C$6=\"nein\",VLOOKUP($B14,$I$41:$K$53,3,0),IF(Fahrzeuge!$C$6=\"ja\",VLOOKUP($B14,$I$41:$K$53,2,0),\"Bitte wählen sie aus, ob sie zum Vorsteuerabzug berechtigt sind!\")),\"\")","v":""},null,{"$f":"IF(D14>0,C14*D14,\"\")","v":""}]
[]
[6,null,{"$f":"IF($B16>0,IF(Fahrzeuge!$C$6=\"nein\",VLOOKUP($B16,$I$41:$K$53,3,0),IF(Fahrzeuge!$C$6=\"ja\",VLOOKUP($B16,$I$41:$K$53,2,0),\"Bitte wählen sie aus, ob sie zum Vorsteuerabzug berechtigt sind!\")),\"\")","v":""},null,{"$f":"IF(D16>0,C16*D16,\"\")","v":""}]
[]
[7,null,{"$f":"IF($B18>0,IF(Fahrzeuge!$C$6=\"nein\",VLOOKUP($B18,$I$41:$K$53,3,0),IF(Fahrzeuge!$C$6=\"ja\",VLOOKUP($B18,$I$41:$K$53,2,0),\"Bitte wählen sie aus, ob sie zum Vorsteuerabzug berechtigt sind!\")),\"\")","v":""},null,{"$f":"IF(D18>0,C18*D18,\"\")","v":""}]
[]
[8,null,{"$f":"IF($B20>0,IF(Fahrzeuge!$C$6=\"nein\",VLOOKUP($B20,$I$41:$K$53,3,0),IF(Fahrzeuge!$C$6=\"ja\",VLOOKUP($B20,$I$41:$K$53,2,0),\"Bitte wählen sie aus, ob sie zum Vorsteuerabzug berechtigt sind!\")),\"\")","v":""},null,{"$f":"IF(D20>0,C20*D20,\"\")","v":""}]
[]
[9,null,{"$f":"IF($B22>0,IF(Fahrzeuge!$C$6=\"nein\",VLOOKUP($B22,$I$41:$K$53,3,0),IF(Fahrzeuge!$C$6=\"ja\",VLOOKUP($B22,$I$41:$K$53,2,0),\"Bitte wählen sie aus, ob sie zum Vorsteuerabzug berechtigt sind!\")),\"\")","v":""},null,{"$f":"IF(D22>0,C22*D22,\"\")","v":""}]
[]
[10,null,{"$f":"IF($B24>0,IF(Fahrzeuge!$C$6=\"nein\",VLOOKUP($B24,$I$41:$K$53,3,0),IF(Fahrzeuge!$C$6=\"ja\",VLOOKUP($B24,$I$41:$K$53,2,0),\"Bitte wählen sie aus, ob sie zum Vorsteuerabzug berechtigt sind!\")),\"\")","v":""},null,{"$f":"IF(D24>0,C24*D24,\"\")","v":""}]
[]
["Summe",null,null,null,{"$f":"SUM(E6:E24)","v":0}]
[]
["* Legende","öff. zugängl.","öffentlich zugängliche Ladepunkte im Sinne der Verordnung über technische Mindestanforderungen an den sicheren und interoperablen Aufbau und Betrieb von öffentlich zugänglichen Ladepunkten für Elektromobile "]
[null,"nicht öff. zugängl.","LIS ist für die Öffentlichkeit nicht zugänglich"]
[null,"DC","Gleichstrom-Ladeinfrastruktur"]
[null,"AC","Wechselstrom-Ladeinfrastruktur"]
{"$rows_empty":8}
[{"$nulls":8},"Typ Ladeinfrastruktur","Ausgabenpauschale netto","Ausgabenpauschale brutto"]
[{"$nulls":8},"Mobile Ladestationen [AC] ab 3,7 kW (1 Ladepunkt)",500,{"$f":"J41*1.19","v":595}]
[{"$nulls":8},"nicht öff. zugängl. [AC] ab 3,7 kW (1 Ladepunkt)",600,714]
[{"$nulls":8},"nicht öff. zugängl. [AC] ab 11 kW (min. 2 Ladepunkte)",3000,3570]
[{"$nulls":8},"nicht öff. zugängl. [DC] bis 25 kW ",10000,11900]
[{"$nulls":8},"nicht öff. zugängl. [DC] 25-50 kW",20000,23800]
[{"$nulls":8},"nicht öff. zugängl. [DC] 51-149 kW",35000,41650]
[{"$nulls":8},"nicht öff. zugängl. [DC] ab 150 kW",50000,59500]
[{"$nulls":8},"öff. zugängl. [AC] ab 3,7 kW (1 Ladepunkt)",{"$f":"J42","v":600},714]
[{"$nulls":8},"öff. zugängl. [AC] ab 11 kW (min. 2 Ladepunkte)",{"$f":"J43","v":3000},{"$f":"J49*1.19","v":3570}]
[{"$nulls":8},"öff. zugängl. [DC] bis 25 kW ",10000,11900]
[{"$nulls":8},"öff. zugängl. [DC] 25-50 kW",{"$f":"J45","v":20000},23800]
[{"$nulls":8},"öff. zugängl. [DC] 51-149 kW",{"$f":"J46","v":35000},41650]
[{"$nulls":8},"öff. zugängl. [DC] ab 150 kW",{"$f":"J47","v":50000},59500]

{"sheet":"spezielle Ladeinfrastruktur","index":4,"n_rows":27,"n_cols":6,"rows_kept":27,"cut":false,"hidden":true,"merged":[[27,0,27,5],[2,0,2,6],[0,0,0,3]]}
["Ermittlung der förderfähigen Ausgaben für Ladeinfrastruktur, die nicht in der Registerkarte \"Ladeinfrastruktur\" aufgeführt wird",{"$nulls":4},{"$f":"IF(Fahrzeuge!$L$1=0, \" \",\"FKZ: 03EMI4\"&Fahrzeuge!$L$1)","v":" "}]
["Hinweise:"]
["Hierfür müssen Sie entsprechende Angebote für die Ladeinfrastruktur eingeholt haben. Diese Angebote sind beizufügen."]
[{"$f":"IF(Fahrzeuge!C6=\"\",\"Bitte geben Sie auf der Registerkarte 'Fahrzeuge'  an, ob Sie zum Vorsteuerabzug berechtigt sind\",\"\")","v":"Bitte geben Sie auf der Registerkarte 'Fahrzeuge'  an, ob Sie zum Vorsteuerabzug berechtigt sind"}]
[]
["Pos.","Typ Ladeinfrastruktur (LIS)",{"$f":"IF(Fahrzeuge!$C$6=\"nein\",\"Bruttopreis LIS laut beigefügtem Angebot *\",IF(Fahrzeuge!$C$6=\"ja\",\"Nettopreis LIS laut beigefügtem Angebot *\",\"Bitte wählen sie aus, ob sie zum Vorsteuerabzug berechtigt sind!\"))","v":"Bitte wählen sie aus, ob sie zum Vorsteuerabzug berechtigt sind!"},"Anzahl zu beschaffender LIS dieses Typs","Förderfähige Ausgaben ","Korrekturfeld PtJ"]
[1,null,null,null,{"$f":"IF(C7>0,D7*C7,\"\")","v":""}]
[]
[2,null,null,null,{"$f":"IF(C9>0,D9*C9,\"\")","v":""}]
[]
[3,null,null,null,{"$f":"IF(C11>0,D11*C11,\"\")","v":""}]
[]
[4,null,null,null,{"$f":"IF(C13>0,D13*C13,\"\")","v":""}]
[]
[5,null,null,null,{"$f":"IF(C15>0,D15*C15,\"\")","v":""}]
[]
[6,null,null,null,{"$f":"IF(C17>0,D17*C17,\"\")","v":""}]
[]
[7,null,null,null,{"$f":"IF(C19>0,D19*C19,\"\")","v":""}]
[]
[8,null,null,null,{"$f":"IF(C21>0,D21*C21,\"\")","v":""}]
[]
[9,null,null,null,{"$f":"IF(C23>0,D23*C23,\"\")","v":""}]
[]
[10,null,null,null,{"$f":"IF(C25>0,D25*C25,\"\")","v":""}]
[]
["Summe",null,null,null,{"$f":"IF(C7>0,SUM(E7:E25),\"\")","v":""}]

{"sheet":"Vorlage für AZA","index":5,"n_rows":80,"n_cols":7,"rows_kept":80,"cut":false,"hidden":false,"merged":[[1,0,1,4],[5,0,5,4],[8,0,8,4],[63,2,63,4],[64,2,64,4]]}
["Hinweis:",null,null,null,{"$f":"IF(Fahrzeuge!$L$1=0, \" \",\"FKZ: 03EMI4\"&Fahrzeuge!$L$1)","v":" "}]
["Vorlage zum Übertragen der Daten aus dieser Tabelle in den AZA-Antrag in easy-Online. "]
["Bitte kopieren Sie die Bezeichung wie hier dargestellt in das easy-Online-Formular. "]
["Die Anzahl der zu beschaffenden Fahrzeuge/ Ladeinfrastruktur muss ggf. auf die Anschaffungsjahre aufgeteilt werden."]
["Beachten Sie, dass die hier angegebene Summe mit den Gesamtmitteln im easy-Online-Antrag überein stimmen müssen."]
[{"$f":"IF(Fahrzeuge!$C$6=\"nein\",\"Der Antragsteller ist nicht zum Vorsteuerabzug berechtigt.\",IF(Fahrzeuge!$C$6=\"ja\",\"Der Antragsteller ist zum Vorsteuerabzug berechtigt.\",\"Bitte wählen sie aus, ob sie zum Vorsteuerabzug berechtigt sind!\"))","v":"Bitte wählen sie aus, ob sie zum Vorsteuerabzug berechtigt sind!"}]
["(sollte diese Aussage nicht zutreffen, wählen Sie bitte die entsprechende Option auf der Registerkarte \"Fahrzeuge\")"]
[]
["Gesamtfinanzierung - Gegenstände und andere Investitionen von mehr als 800 € im Einzelfall"]
[]
["lfd. Nr.","Bezeichnung","Zuwendungsfähige\nAusgaben / Stück","Anzahl","F0833 Betrag €"]
[{"$f":"IF(Fahrzeuge!$B15>\"\",Fahrzeuge!A15,0)","v":0},{"$f":"IF(Fahrzeuge!$B15>\"\",CONCATENATE(Fahrzeuge!AI15,\" \",Fahrzeuge!B15),\"\")","v":""},{"$f":"IF(Fahrzeuge!$B15>\"\",Fahrzeuge!G15,\"\")","v":""},{"$f":"IF(Fahrzeuge!$B15>\"\",Fahrzeuge!I15,\"\")","v":""},{"$f":"IF(Fahrzeuge!$B15>\"\",Fahrzeuge!K15,\"\")","v":""}]
[{"$f":"IF(Fahrzeuge!B16>\"\",Fahrzeuge!A16,A12)","v":0},{"$f":"IF(Fahrzeuge!$B16>\"\",CONCATENATE(Fahrzeuge!AI16,\" \",Fahrzeuge!B16),\"\")","v":""},{"$f":"IF(Fahrzeuge!$B16>\"\",Fahrzeuge!G16,\"\")","v":""},{"$f":"IF(Fahrzeuge!$B16>\"\",Fahrzeuge!I16,\"\")","v":""},{"$f":"IF(Fahrzeuge!$B16>\"\",Fahrzeuge!K16,\"\")","v":""}]
[{"$f":"IF(Fahrzeuge!B17>\"\",Fahrzeuge!A17,A13)","v":0},{"$f":"IF(Fahrzeuge!$B17>\"\",CONCATENATE(Fahrzeuge!AI17,\" \",Fahrzeuge!B17),\"\")","v":""},{"$f":"IF(Fahrzeuge!$B17>\"\",Fahrzeuge!G17,\"\")","v":""},{"$f":"IF(Fahrzeuge!$B17>\"\",Fahrzeuge!I17,\"\")","v":""},{"$f":"IF(Fahrzeuge!$B17>\"\",Fahrzeuge!K17,\"\")","v":""}]
[{"$f":"IF(Fahrzeuge!B18>\"\",Fahrzeuge!A18,A14)","v":0},{"$f":"IF(Fahrzeuge!$B18>\"\",CONCATENATE(Fahrzeuge!AI18,\" \",Fahrzeuge!B18),\"\")","v":""},{"$f":"IF(Fahrzeuge!$B18>\"\",Fahrzeuge!G18,\"\")","v":""},{"$f":"IF(Fahrzeuge!$B18>\"\",Fahrzeuge!I18,\"\")","v":""},{"$f":"IF(Fahrzeuge!$B18>\"\",Fahrzeuge!K18,\"\")","v":""}]
[{"$f":"IF(Fahrzeuge!B19>\"\",Fahrzeuge!A19,A15)","v":0},{"$f":"IF(Fahrzeuge!$B19>\"\",CONCATENATE(Fahrzeuge!AI19,\" \",Fahrzeuge!B19),\"\")","v":""},{"$f":"IF(Fahrzeuge!$B19>\"\",Fahrzeuge!G19,\"\")","v":""},{"$f":"IF(Fahrzeuge!$B19>\"\",Fahrzeuge!I19,\"\")","v":""},{"$f":"IF(Fahrzeuge!$B19>\"\",Fahrzeuge!K19,\"\")","v":""}]
[{"$f":"IF(Fahrzeuge!B20>\"\",Fahrzeuge!A20,A16)","v":0},{"$f":"IF(Fahrzeuge!$B20>\"\",CONCATENATE(Fahrzeuge!AI20,\" \",Fahrzeuge!B20),\"\")","v":""},{"$f":"IF(Fahrzeuge!$B20>\"\",Fahrzeuge!G20,\"\")","v":""},{"$f":"IF(Fahrzeuge!$B20>\"\",Fahrzeuge!I20,\"\")","v":""},{"$f":"IF(Fahrzeuge!$B20>\"\",Fahrzeuge!K20,\"\")","v":""}]
[{"$f":"IF(Fahrzeuge!B21>\"\",Fahrzeuge!A21,A17)","v":0},{"$f":"IF(Fahrzeuge!$B21>\"\",CONCATENATE(Fahrzeuge!AI21,\" \",Fahrzeuge!B21),\"\")","v":""},{"$f":"IF(Fahrzeuge!$B21>\"\",Fahrzeuge!G21,\"\")","v":""},{"$f":"IF(Fahrzeuge!$B21>\"\",Fahrzeuge!I21,\"\")","v":""},{"$f":"IF(Fahrzeuge!$B21>\"\",Fahrzeuge!K21,\"\")","v":""}]
[{"$f":"IF(Fahrzeuge!B22>\"\",Fahrzeuge!A22,A18)","v":0},{"$f":"IF(Fahrzeuge!$B22>\"\",CONCATENATE(Fahrzeuge!AI22,\" \",Fahrzeuge!B22),\"\")","v":""},{"$f":"IF(Fahrzeuge!$B22>\"\",Fahrzeuge!G22,\"\")","v":""},{"$f":"IF(Fahrzeuge!$B22>\"\",Fahrzeuge!I22,\"\")","v":""},{"$f":"IF(Fahrzeuge!$B22>\"\",Fahrzeuge!K22,\"\")","v":""}]
[{"$f":"IF(Fahrzeuge!B23>\"\",Fahrzeuge!A23,A19)","v":0},{"$f":"IF(Fahrzeuge!$B23>\"\",CONCATENATE(Fahrzeuge!AI23,\" \",Fahrzeuge!B23),\"\")","v":""},{"$f":"IF(Fahrzeuge!$B23>\"\",Fahrzeuge!G23,\"\")","v":""},{"$f":"IF(Fahrzeuge!$B23>\"\",Fahrzeuge!I23,\"\")","v":""},{"$f":"IF(Fahrzeuge!$B23>\"\",Fahrzeuge!K23,\"\")","v":""}]
[{"$f":"IF(Fahrzeuge!B24>\"\",Fahrzeuge!A24,A20)","v":0},{"$f":"IF(Fahrzeuge!$B24>\"\",CONCATENATE(Fahrzeuge!AI24,\" \",Fahrzeuge!B24),\"\")","v":""},{"$f":"IF(Fahrzeuge!$B24>\"\",Fahrzeuge!G24,\"\")","v":""},{"$f":"IF(Fahrzeuge!$B24>\"\",Fahrzeuge!I24,\"\")","v":""},{"$f":"IF(Fahrzeuge!$B24>\"\",Fahrzeuge!K24,\"\")","v":""}]
[{"$f":"IF(Fahrzeuge!B25>\"\",Fahrzeuge!A25,A21)","v":0},{"$f":"IF(Fahrzeuge!$B25>\"\",CONCATENATE(Fahrzeuge!AI25,\" \",Fahrzeuge!B25),\"\")","v":""},{"$f":"IF(Fahrzeuge!$B25>\"\",Fahrzeuge!G25,\"\")","v":""},{"$f":"IF(Fahrzeuge!$B25>\"\",Fahrzeuge!I25,\"\")","v":""},{"$f":"IF(Fahrzeuge!$B25>\"\",Fahrzeuge!K25,\"\")","v":""}]
[{"$f":"IF(Fahrzeuge!B26>\"\",Fahrzeuge!A26,A22)","v":0},{"$f":"IF(Fahrzeuge!$B26>\"\",CONCATENATE(Fahrzeuge!AI26,\" \",Fahrzeuge!B26),\"\")","v":""},{"$f":"IF(Fahrzeuge!$B26>\"\",Fahrzeuge!G26,\"\")","v":""},{"$f":"IF(Fahrzeuge!$B26>\"\",Fahrzeuge!I26,\"\")","v":""},{"$f":"IF(Fahrzeuge!$B26>\"\",Fahrzeuge!K26,\"\")","v":""}]
[{"$f":"IF(Fahrzeuge!B27>\"\",Fahrzeuge!A27,A23)","v":0},{"$f":"IF(Fahrzeuge!$B27>\"\",CONCATENATE(Fahrzeuge!AI27,\" \",Fahrzeuge!B27),\"\")","v":""},{"$f":"IF(Fahrzeuge!$B27>\"\",Fahrzeuge!G27,\"\")","v":""},{"$f":"IF(Fahrzeuge!$B27>\"\",Fahrzeuge!I27,\"\")","v":""},{"$f":"IF(Fahrzeuge!$B27>\"\",Fahrzeuge!K27,\"\")","v":""}]
[{"$f":"IF(Fahrzeuge!B28>\"\",Fahrzeuge!A28,A24)","v":0},{"$f":"IF(Fahrzeuge!$B28>\"\",CONCATENATE(Fahrzeuge!AI28,\" \",Fahrzeuge!B28),\"\")","v":""},{"$f":"IF(Fahrzeuge!$B28>\"\",Fahrzeuge!G28,\"\")","v":""},{"$f":"IF(Fahrzeuge!$B28>\"\",Fahrzeuge!I28,\"\")","v":""},{"$f":"IF(Fahrzeuge!$B28>\"\",Fahrzeuge!K28,\"\")","v":""}]
[{"$f":"IF(Fahrzeuge!B29>\"\",Fahrzeuge!A29,A25)","v":0},{"$f":"IF(Fahrzeuge!$B29>\"\",CONCATENATE(Fahrzeuge!AI29,\" \",Fahrzeuge!B29),\"\")","v":""},{"$f":"IF(Fahrzeuge!$B29>\"\",Fahrzeuge!G29,\"\")","v":""},{"$f":"IF(Fahrzeuge!$B29>\"\",Fahrzeuge!I29,\"\")","v":""},{"$f":"IF(Fahrzeuge!$B29>\"\",Fahrzeuge!K29,\"\")","v":""}]
[{"$f":"IF(Fahrzeuge!B30>\"\",Fahrzeuge!A30,A26)","v":0},{"$f":"IF(Fahrzeuge!$B30>\"\",CONCATENATE(Fahrzeuge!AI30,\" \",Fahrzeuge!B30),\"\")","v":""},{"$f":"IF(Fahrzeuge!$B30>\"\",Fahrzeuge!G30,\"\")","v":""},{"$f":"IF(Fahrzeuge!$B30>\"\",Fahrzeuge!I30,\"\")","v":""},{"$f":"IF(Fahrzeuge!$B30>\"\",Fahrzeuge!K30,\"\")","v":""}]
[{"$f":"IF(Fahrzeuge!B31>\"\",Fahrzeuge!A31,A27)","v":0},{"$f":"IF(Fahrzeuge!$B31>\"\",CONCATENATE(Fahrzeuge!AI31,\" \",Fahrzeuge!B31),\"\")","v":""},{"$f":"IF(Fahrzeuge!$B31>\"\",Fahrzeuge!G31,\"\")","v":""},{"$f":"IF(Fahrzeuge!$B31>\"\",Fahrzeuge!I31,\"\")","v":""},{"$f":"IF(Fahrzeuge!$B31>\"\",Fahrzeuge!K31,\"\")","v":""}]
[{"$f":"IF(Fahrzeuge!B32>\"\",Fahrzeuge!A32,A28)","v":0},{"$f":"IF(Fahrzeuge!$B32>\"\",CONCATENATE(Fahrzeuge!AI32,\" \",Fahrzeuge!B32),\"\")","v":""},{"$f":"IF(Fahrzeuge!$B32>\"\",Fahrzeuge!G32,\"\")","v":""},{"$f":"IF(Fahrzeuge!$B32>\"\",Fahrzeuge!I32,\"\")","v":""},{"$f":"IF(Fahrzeuge!$B32>\"\",Fahrzeuge!K32,\"\")","v":""}]
[{"$f":"IF(Fahrzeuge!B33>\"\",Fahrzeuge!A33,A29)","v":0},{"$f":"IF(Fahrzeuge!$B33>\"\",CONCATENATE(Fahrzeuge!AI33,\" \",Fahrzeuge!B33),\"\")","v":""},{"$f":"IF(Fahrzeuge!$B33>\"\",Fahrzeuge!G33,\"\")","v":""},{"$f":"IF(Fahrzeuge!$B33>\"\",Fahrzeuge!I33,\"\")","v":""},{"$f":"IF(Fahrzeuge!$B33>\"\",Fahrzeuge!K33,\"\")","v":""}]
[{"$f":"IF(Fahrzeuge!B34>\"\",Fahrzeuge!A34,A30)","v":0},{"$f":"IF(Fahrzeuge!$B34>\"\",CONCATENATE(Fahrzeuge!AI34,\" \",Fahrzeuge!B34),\"\")","v":""},{"$f":"IF(Fahrzeuge!$B34>\"\",Fahrzeuge!G34,\"\")","v":""},{"$f":"IF(Fahrzeuge!$B34>\"\",Fahrzeuge!I34,\"\")","v":""},{"$f":"IF(Fahrzeuge!$B34>\"\",Fahrzeuge!K34,\"\")","v":""}]
[{"$f":"IF('sonst. PKW u. LFZ'!B7>\"\",A31+1,A31)","v":0},{"$f":"IF('sonst. PKW u. LFZ'!$B7>\"\",CONCATENATE(\"LKW bzw. SFZ \",'sonst. PKW u. LFZ'!$B7),\"\")","v":""},{"$f":"IF('sonst. PKW u. LFZ'!$B7>\"\",'sonst. PKW u. LFZ'!F7,\"\")","v":""},{"$f":"IF('sonst. PKW u. LFZ'!$B7>\"\",'sonst. PKW u. LFZ'!G7,\"\")","v":""},{"$f":"IF('sonst. PKW u. LFZ'!$B7>\"\",'sonst. PKW u. LFZ'!J7,\"\")","v":""}]
[{"$f":"IF('sonst. PKW u. LFZ'!B9>\"\",A32+1,A32)","v":0},{"$f":"IF('sonst. PKW u. LFZ'!$B9>\"\",CONCATENATE(\"LKW bzw. SFZ \",'sonst. PKW u. LFZ'!$B9),\"\")","v":""},{"$f":"IF('sonst. PKW u. LFZ'!$B9>\"\",'sonst. PKW u. LFZ'!F9,\"\")","v":""},{"$f":"IF('sonst. PKW u. LFZ'!$B9>\"\",'sonst. PKW u. LFZ'!G9,\"\")","v":""},{"$f":"IF('sonst. PKW u. LFZ'!$B9>\"\",'sonst. PKW u. LFZ'!J9,\"\")","v":""}]
[{"$f":"IF('sonst. PKW u. LFZ'!B11>\"\",A33+1,A33)","v":0},{"$f":"IF('sonst. PKW u. LFZ'!$B11>\"\",CONCATENATE(\"LKW bzw. SFZ \",'sonst. PKW u. LFZ'!$B11),\"\")","v":""},{"$f":"IF('sonst. PKW u. LFZ'!$B11>\"\",'sonst. PKW u. LFZ'!F11,\"\")","v":""},{"$f":"IF('sonst. PKW u. LFZ'!$B11>\"\",'sonst. PKW u. LFZ'!G11,\"\")","v":""},{"$f":"IF('sonst. PKW u. LFZ'!$B11>\"\",'sonst. PKW u. LFZ'!J11,\"\")","v":""}]
[{"$f":"IF('sonst. PKW u. LFZ'!B13>\"\",A34+1,A34)","v":0},{"$f":"IF('sonst. PKW u. LFZ'!$B13>\"\",CONCATENATE(\"LKW bzw. SFZ \",'sonst. PKW u. LFZ'!$B13),\"\")","v":""},{"$f":"IF('sonst. PKW u. LFZ'!$B13>\"\",'sonst. PKW u. LFZ'!F13,\"\")","v":""},{"$f":"IF('sonst. PKW u. LFZ'!$B13>\"\",'sonst. PKW u. LFZ'!G13,\"\")","v":""},{"$f":"IF('sonst. PKW u. LFZ'!$B13>\"\",'sonst. PKW u. LFZ'!J13,\"\")","v":""}]
[{"$f":"IF('sonst. PKW u. LFZ'!B15>\"\",A35+1,A35)","v":0},{"$f":"IF('sonst. PKW u. LFZ'!$B15>\"\",CONCATENATE(\"LKW bzw. SFZ \",'sonst. PKW u. LFZ'!$B15),\"\")","v":""},{"$f":"IF('sonst. PKW u. LFZ'!$B15>\"\",'sonst. PKW u. LFZ'!F15,\"\")","v":""},{"$f":"IF('sonst. PKW u. LFZ'!$B15>\"\",'sonst. PKW u. LFZ'!G15,\"\")","v":""},{"$f":"IF('sonst. PKW u. LFZ'!$B15>\"\",'sonst. PKW u. LFZ'!J15,\"\")","v":""}]
[{"$f":"IF('sonst. PKW u. LFZ'!B17>\"\",A36+1,A36)","v":0},{"$f":"IF('sonst. PKW u. LFZ'!$B17>\"\",CONCATENATE(\"LKW bzw. SFZ \",'sonst. PKW u. LFZ'!$B17),\"\")","v":""},{"$f":"IF('sonst. PKW u. LFZ'!$B17>\"\",'sonst. PKW u. LFZ'!F17,\"\")","v":""},{"$f":"IF('sonst. PKW u. LFZ'!$B17>\"\",'sonst. PKW u. LFZ'!G17,\"\")","v":""},{"$f":"IF('sonst. PKW u. LFZ'!$B17>\"\",'sonst. PKW u. LFZ'!J17,\"\")","v":""}]
[{"$f":"IF('sonst. PKW u. LFZ'!B19>\"\",A37+1,A37)","v":0},{"$f":"IF('sonst. PKW u. LFZ'!$B19>\"\",CONCATENATE(\"LKW bzw. SFZ \",'sonst. PKW u. LFZ'!$B19),\"\")","v":""},{"$f":"IF('sonst. PKW u. LFZ'!$B19>\"\",'sonst. PKW u. LFZ'!F19,\"\")","v":""},{"$f":"IF('sonst. PKW u. LFZ'!$B19>\"\",'sonst. PKW u. LFZ'!G19,\"\")","v":""},{"$f":"IF('sonst. PKW u. LFZ'!$B19>\"\",'sonst. PKW u. LFZ'!J19,\"\")","v":""}]
[{"$f":"IF('sonst. PKW u. LFZ'!B21>\"\",A38+1,A38)","v":0},{"$f":"IF('sonst. PKW u. LFZ'!$B21>\"\",CONCATENATE(\"LKW bzw. SFZ \",'sonst. PKW u. LFZ'!$B21),\"\")","v":""},{"$f":"IF('sonst. PKW u. LFZ'!$B21>\"\",'sonst. PKW u. LFZ'!F21,\"\")","v":""},{"$f":"IF('sonst. PKW u. LFZ'!$B21>\"\",'sonst. PKW u. LFZ'!G21,\"\")","v":""},{"$f":"IF('sonst. PKW u. LFZ'!$B21>\"\",'sonst. PKW u. LFZ'!J21,\"\")","v":""}]
[{"$f":"IF('sonst. PKW u. LFZ'!B23>\"\",A39+1,A39)","v":0},{"$f":"IF('sonst. PKW u. LFZ'!$B23>\"\",CONCATENATE(\"LKW bzw. SFZ \",'sonst. PKW u. LFZ'!$B23),\"\")","v":""},{"$f":"IF('sonst. PKW u. LFZ'!$B23>\"\",'sonst. PKW u. LFZ'!F23,\"\")","v":""},{"$f":"IF('sonst. PKW u. LFZ'!$B23>\"\",'sonst. PKW u. LFZ'!G23,\"\")","v":""},{"$f":"IF('sonst. PKW u. LFZ'!$B23>\"\",'sonst. PKW u. LFZ'!J23,\"\")","v":""}]
[{"$f":"IF('sonst. PKW u. LFZ'!B25>\"\",A40+1,A40)","v":0},{"$f":"IF('sonst. PKW u. LFZ'!$B25>\"\",CONCATENATE(\"LKW bzw. SFZ \",'sonst. PKW u. LFZ'!$B25),\"\")","v":""},{"$f":"IF('sonst. PKW u. LFZ'!$B25>\"\",'sonst. PKW u. LFZ'!F25,\"\")","v":""},{"$f":"IF('sonst. PKW u. LFZ'!$B25>\"\",'sonst. PKW u. LFZ'!G25,\"\")","v":""},{"$f":"IF('sonst. PKW u. LFZ'!$B25>\"\",'sonst. PKW u. LFZ'!J25,\"\")","v":""}]
[{"$f":"IF(Ladeinfrastruktur!$B6>\"\",A41+1,A41)","v":0},{"$f":"IF(Ladeinfrastruktur!$B6>\"\",CONCATENATE(\" LIS \",Ladeinfrastruktur!B6),\"\")","v":""},{"$f":"IF($B42>\"\",Ladeinfrastruktur!C6,\"\")","v":""},{"$f":"IF($B42>\"\",Ladeinfrastruktur!D6,\"\")","v":""},{"$f":"IF($B42>\"\",Ladeinfrastruktur!E6,\"\")","v":""}]
[{"$f":"IF(Ladeinfrastruktur!$B8>\"\",A42+1,A42)","v":0},{"$f":"IF(Ladeinfrastruktur!$B8>\"\",CONCATENATE(\" LIS \",Ladeinfrastruktur!B8),\"\")","v":""},{"$f":"IF($B43>\"\",Ladeinfrastruktur!C8,\"\")","v":""},{"$f":"IF($B43>\"\",Ladeinfrastruktur!D8,\"\")","v":""},{"$f":"IF($B43>\"\",Ladeinfrastruktur!E8,\"\")","v":""}]
[{"$f":"IF(Ladeinfrastruktur!$B10>\"\",A43+1,A43)","v":0},{"$f":"IF(Ladeinfrastruktur!$B10>\"\",CONCATENATE(\" LIS \",Ladeinfrastruktur!B10),\"\")","v":""},{"$f":"IF($B44>\"\",Ladeinfrastruktur!C10,\"\")","v":""},{"$f":"IF($B44>\"\",Ladeinfrastruktur!D10,\"\")","v":""},{"$f":"IF($B44>\"\",Ladeinfrastruktur!E10,\"\")","v":""}]
[{"$f":"IF(Ladeinfrastruktur!$B12>\"\",A44+1,A44)","v":0},{"$f":"IF(Ladeinfrastruktur!$B12>\"\",CONCATENATE(\" LIS \",Ladeinfrastruktur!B12),\"\")","v":""},{"$f":"IF($B45>\"\",Ladeinfrastruktur!C12,\"\")","v":""},{"$f":"IF($B45>\"\",Ladeinfrastruktur!D12,\"\")","v":""},{"$f":"IF($B45>\"\",Ladeinfrastruktur!E12,\"\")","v":""}]
[{"$f":"IF(Ladeinfrastruktur!$B14>\"\",A45+1,A45)","v":0},{"$f":"IF(Ladeinfrastruktur!$B14>\"\",CONCATENATE(\" LIS \",Ladeinfrastruktur!B14),\"\")","v":""},{"$f":"IF($B46>\"\",Ladeinfrastruktur!C14,\"\")","v":""},{"$f":"IF($B46>\"\",Ladeinfrastruktur!D14,\"\")","v":""},{"$f":"IF($B46>\"\",Ladeinfrastruktur!E14,\"\")","v":""}]
[{"$f":"IF(Ladeinfrastruktur!$B16>\"\",A46+1,A46)","v":0},{"$f":"IF(Ladeinfrastruktur!$B16>\"\",CONCATENATE(\" LIS \",Ladeinfrastruktur!B16),\"\")","v":""},{"$f":"IF($B47>\"\",Ladeinfrastruktur!C16,\"\")","v":""},{"$f":"IF($B47>\"\",Ladeinfrastruktur!D16,\"\")","v":""},{"$f":"IF($B47>\"\",Ladeinfrastruktur!E16,\"\")","v":""}]
[{"$f":"IF(Ladeinfrastruktur!$B18>\"\",A47+1,A47)","v":0},{"$f":"IF(Ladeinfrastruktur!$B18>\"\",CONCATENATE(\" LIS \",Ladeinfrastruktur!B18),\"\")","v":""},{"$f":"IF($B48>\"\",Ladeinfrastruktur!C18,\"\")","v":""},{"$f":"IF($B48>\"\",Ladeinfrastruktur!D18,\"\")","v":""},{"$f":"IF($B48>\"\",Ladeinfrastruktur!E18,\"\")","v":""}]
[{"$f":"IF(Ladeinfrastruktur!$B20>\"\",A48+1,A48)","v":0},{"$f":"IF(Ladeinfrastruktur!$B20>\"\",CONCATENATE(\" LIS \",Ladeinfrastruktur!B20),\"\")","v":""},{"$f":"IF($B49>\"\",Ladeinfrastruktur!C20,\"\")","v":""},{"$f":"IF($B49>\"\",Ladeinfrastruktur!D20,\"\")","v":""},{"$f":"IF($B49>\"\",Ladeinfrastruktur!E20,\"\")","v":""}]
[{"$f":"IF(Ladeinfrastruktur!$B22>\"\",A49+1,A49)","v":0},{"$f":"IF(Ladeinfrastruktur!$B22>\"\",CONCATENATE(\" LIS \",Ladeinfrastruktur!B22),\"\")","v":""},{"$f":"IF($B50>\"\",Ladeinfrastruktur!C22,\"\")","v":""},{"$f":"IF($B50>\"\",Ladeinfrastruktur!D22,\"\")","v":""},{"$f":"IF($B50>\"\",Ladeinfrastruktur!E22,\"\")","v":""}]
[{"$f":"IF(Ladeinfrastruktur!$B24>\"\",A50+1,A50)","v":0},{"$f":"IF(Ladeinfrastruktur!$B24>\"\",CONCATENATE(\" LIS \",Ladeinfrastruktur!B24),\"\")","v":""},{"$f":"IF($B51>\"\",Ladeinfrastruktur!C24,\"\")","v":""},{"$f":"IF($B51>\"\",Ladeinfrastruktur!D24,\"\")","v":""},{"$f":"IF($B51>\"\",Ladeinfrastruktur!E24,\"\")","v":""}]
[{"$f":"IF('spezielle Ladeinfrastruktur'!$B7>\"\",A51+1,A51)","v":0},{"$f":"IF('spezielle Ladeinfrastruktur'!B7>\"\",CONCATENATE(\" LIS \",'spezielle Ladeinfrastruktur'!B7),\"\")","v":""},{"$f":"IF('spezielle Ladeinfrastruktur'!$B7>\"\",'spezielle Ladeinfrastruktur'!C7,\"\")","v":""},{"$f":"IF('spezielle Ladeinfrastruktur'!$B7>\"\",'spezielle Ladeinfrastruktur'!D7,\"\")","v":""},{"$f":"IF('spezielle Ladeinfrastruktur'!$B7>\"\",'spezielle Ladeinfrastruktur'!E7,\"\")","v":""}]
[{"$f":"IF('spezielle Ladeinfrastruktur'!$B9>\"\",A52+1,A52)","v":0},{"$f":"IF('spezielle Ladeinfrastruktur'!B9>\"\",CONCATENATE(\" LIS \",'spezielle Ladeinfrastruktur'!B9),\"\")","v":""},{"$f":"IF('spezielle Ladeinfrastruktur'!$B9>\"\",'spezielle Ladeinfrastruktur'!C9,\"\")","v":""},{"$f":"IF('spezielle Ladeinfrastruktur'!$B9>\"\",'spezielle Ladeinfrastruktur'!D9,\"\")","v":""},{"$f":"IF('spezielle Ladeinfrastruktur'!$B9>\"\",'spezielle Ladeinfrastruktur'!E9,\"\")","v":""}]
[{"$f":"IF('spezielle Ladeinfrastruktur'!$B11>\"\",A53+1,A53)","v":0},{"$f":"IF('spezielle Ladeinfrastruktur'!B11>\"\",CONCATENATE(\" LIS \",'spezielle Ladeinfrastruktur'!B11),\"\")","v":""},{"$f":"IF('spezielle Ladeinfrastruktur'!$B11>\"\",'spezielle Ladeinfrastruktur'!C11,\"\")","v":""},{"$f":"IF('spezielle Ladeinfrastruktur'!$B11>\"\",'spezielle Ladeinfrastruktur'!D11,\"\")","v":""},{"$f":"IF('spezielle Ladeinfrastruktur'!$B11>\"\",'spezielle Ladeinfrastruktur'!E11,\"\")","v":""}]
[{"$f":"IF('spezielle Ladeinfrastruktur'!$B13>\"\",A54+1,A54)","v":0},{"$f":"IF('spezielle Ladeinfrastruktur'!B13>\"\",CONCATENATE(\" LIS \",'spezielle Ladeinfrastruktur'!B13),\"\")","v":""},{"$f":"IF('spezielle Ladeinfrastruktur'!$B13>\"\",'spezielle Ladeinfrastruktur'!C13,\"\")","v":""},{"$f":"IF('spezielle Ladeinfrastruktur'!$B13>\"\",'spezielle Ladeinfrastruktur'!D13,\"\")","v":""},{"$f":"IF('spezielle Ladeinfrastruktur'!$B13>\"\",'spezielle Ladeinfrastruktur'!E13,\"\")","v":""}]
[{"$f":"IF('spezielle Ladeinfrastruktur'!$B15>\"\",A55+1,A55)","v":0},{"$f":"IF('spezielle Ladeinfrastruktur'!B15>\"\",CONCATENATE(\" LIS \",'spezielle Ladeinfrastruktur'!B15),\"\")","v":""},{"$f":"IF('spezielle Ladeinfrastruktur'!$B15>\"\",'spezielle Ladeinfrastruktur'!C15,\"\")","v":""},{"$f":"IF('spezielle Ladeinfrastruktur'!$B15>\"\",'spezielle Ladeinfrastruktur'!D15,\"\")","v":""},{"$f":"IF('spezielle Ladeinfrastruktur'!$B15>\"\",'spezielle Ladeinfrastruktur'!E15,\"\")","v":""}]
[{"$f":"IF('spezielle Ladeinfrastruktur'!$B17>\"\",A56+1,A56)","v":0},{"$f":"IF('spezielle Ladeinfrastruktur'!B17>\"\",CONCATENATE(\" LIS \",'spezielle Ladeinfrastruktur'!B17),\"\")","v":""},{"$f":"IF('spezielle Ladeinfrastruktur'!$B17>\"\",'spezielle Ladeinfrastruktur'!C17,\"\")","v":""},{"$f":"IF('spezielle Ladeinfrastruktur'!$B17>\"\",'spezielle Ladeinfrastruktur'!D17,\"\")","v":""},{"$f":"IF('spezielle Ladeinfrastruktur'!$B17>\"\",'spezielle Ladeinfrastruktur'!E17,\"\")","v":""}]
[{"$f":"IF('spezielle Ladeinfrastruktur'!$B19>\"\",A57+1,A57)","v":0},{"$f":"IF('spezielle Ladeinfrastruktur'!B19>\"\",CONCATENATE(\" LIS \",'spezielle Ladeinfrastruktur'!B19),\"\")","v":""},{"$f":"IF('spezielle Ladeinfrastruktur'!$B19>\"\",'spezielle Ladeinfrastruktur'!C19,\"\")","v":""},{"$f":"IF('spezielle Ladeinfrastruktur'!$B19>\"\",'spezielle Ladeinfrastruktur'!D19,\"\")","v":""},{"$f":"IF('spezielle Ladeinfrastruktur'!$B19>\"\",'spezielle Ladeinfrastruktur'!E19,\"\")","v":""}]
[{"$f":"IF('spezielle Ladeinfrastruktur'!$B21>\"\",A58+1,A58)","v":0},{"$f":"IF('spezielle Ladeinfrastruktur'!B21>\"\",CONCATENATE(\" LIS \",'spezielle Ladeinfrastruktur'!B21),\"\")","v":""},{"$f":"IF('spezielle Ladeinfrastruktur'!$B21>\"\",'spezielle Ladeinfrastruktur'!C21,\"\")","v":""},{"$f":"IF('spezielle Ladeinfrastruktur'!$B21>\"\",'spezielle Ladeinfrastruktur'!D21,\"\")","v":""},{"$f":"IF('spezielle Ladeinfrastruktur'!$B21>\"\",'spezielle Ladeinfrastruktur'!E21,\"\")","v":""}]
[{"$f":"IF('spezielle Ladeinfrastruktur'!$B23>\"\",A59+1,A59)","v":0},{"$f":"IF('spezielle Ladeinfrastruktur'!B23>\"\",CONCATENATE(\" LIS \",'spezielle Ladeinfrastruktur'!B23),\"\")","v":""},{"$f":"IF('spezielle Ladeinfrastruktur'!$B23>\"\",'spezielle Ladeinfrastruktur'!C23,\"\")","v":""},{"$f":"IF('spezielle Ladeinfrastruktur'!$B23>\"\",'spezielle Ladeinfrastruktur'!D23,\"\")","v":""},{"$f":"IF('spezielle Ladeinfrastruktur'!$B23>\"\",'spezielle Ladeinfrastruktur'!E23,\"\")","v":""}]
[{"$f":"IF('spezielle Ladeinfrastruktur'!$B25>\"\",A60+1,A60)","v":0},{"$f":"IF('spezielle Ladeinfrastruktur'!B25>\"\",CONCATENATE(\" LIS \",'spezielle Ladeinfrastruktur'!B25),\"\")","v":""},{"$f":"IF('spezielle Ladeinfrastruktur'!$B25>\"\",'spezielle Ladeinfrastruktur'!C25,\"\")","v":""},{"$f":"IF('spezielle Ladeinfrastruktur'!$B25>\"\",'spezielle Ladeinfrastruktur'!D25,\"\")","v":""},{"$f":"IF('spezielle Ladeinfrastruktur'!$B25>\"\",'spezielle Ladeinfrastruktur'!E25,\"\")","v":""}]
[null,null,null,"Summe:",{"$f":"ROUND(SUM(E12:E61),0)","v":0}]
[]
[null,null,{"$f":"IF(A70>0,IF($E$62<F71,F78,IF($E$62>F72,F80,F79)),\"\")","v":""}]
[null,null,{"$f":"IF(A70>0,IF($E$62<G71,G78,IF($E$62>G72,G80,G79)),\"\")","v":""}]
[]
[]
[]
["Vorsteuerabzug","Wertgrenzen","Netto","Brutto","spezifische Beträge","Betrag bei \nFQ 40%","Betrag bei \nFQ 50%"]
[{"$f":"Fahrzeuge!$C$6","v":0}]
[null,"Fördermindestbetrag:",15000,17850,{"$f":"IF($A$70=\"ja\",C71,IF($A$70=\"nein\",D71,0))","v":0},{"$f":"E71/0.4","v":0},{"$f":"E71/0.5","v":0}]
[null,"Förderhöchstbetrag:",1000000,1190000,{"$f":"IF($A$70=\"ja\",C72,IF($A$70=\"nein\",D72,0))","v":0},{"$f":"E72/0.4","v":0},{"$f":"E72/0.5","v":0}]
[]
[null,"Backup","=WENN($A$70=\"Ja\";WENN($E$62*40%<$C$71;$F$78;WENN($E$62*40%>$C$72;$F$80;\"\"));WENN($E$62*40%<$D$71;$F$78;WENN($E$62*40%>$D$72;$F$80;\"\")))"]
[null,null,"=WENN($A$70=\"Ja\";WENN($E$62*50%<$C$71;$G$78;WENN($E$62*50%>$C$72;$G$80;\"\"));WENN($E$62*50%<$D$71;$G$78;WENN($E$62*50%>$D$72;$G$80;\"\")))"]
[{"$nulls":5},"Text"]
[]
[{"$nulls":5},"Fördermindestbetrag bei Förderquote 40 % unterschritten","Fördermindestbetrag bei Förderquote 50 % unterschritten"]
[{"$nulls":5},"Fördermindestbetrag bei Förderquote 40 % erreicht","Fördermindestbetrag bei Förderquote 50 % erreicht"]
[{"$nulls":5},"Förderhöchstbetrag bei Förderquote 40 % überschritten","Förderhöchstbetrag bei Förderquote 50 % überschritten"]